{"text_format":"1","workbook":"xlsx","n_sheets":18,"sheets":["How to use this system","Charts","BLK","MetaData","RawData","TimeCheck","HeightCheck","RemoteCheck","LeapCheck","CheckOut","Data","OA","CA","PA","PP","TA","ST","hidden"],"not_rendered":{"charts":25,"images":0,"macros":1,"external_links":1,"defined_names":0,"comments":0,"pivot_tables":0},"unopened":[],"bounds":{"document_bytes":16777216,"sheet_cells":100000,"rows_first":2000,"rows_last":500,"rows_between":2000,"halvings":0,"cell_chars":16384,"cell_head_chars":4096},"cells_cut":0,"cells_raw":0,"read":"whole","date_system":"1900"}

{"sheet":"How to use this system","index":0,"n_rows":62,"n_cols":31,"rows_kept":62,"cut":false,"hidden":false,"merged":[]}
["Movements.xlsm",null,null,"Ver.10-00",null,null,null,null,null,null,null,null,null,null,null,null,null,null,null,null,null,null,null,null,null,null,"Movements.xlsm",null,null,"Ver.10-00"]
[]
["このシステムの使い方　　",null,null,null,null,null,null,null,null,null,null,null,null,null,null,null,null,null,null,null,null,null,null,null,null,null,"How to use this system"]
[]
["　このシステムファイルはGPSデータ分析用のマクロを含みます。",null,null,null,null,null,null,null,null,null,null,null,null,null,null,null,null,null,null,null,null,null,null,null,null,null,"　This system file contains macros for analysing GPS data."]
["　　必要なマクロを選んで実行してください。マクロはMac・Windows両方で利用可能です。",null,null,null,null,null,null,null,null,null,null,null,null,null,null,null,null,null,null,null,null,null,null,null,null,null,"     Pick and run a macro suitable. Macros work both on Mac and Windows."]
["　　ただし、MacではさらにApplescriptファイル (MovementAnalyser.scpt) を次の場所に置いておく必要があります。",null,null,null,null,null,null,null,null,null,null,null,null,null,null,null,null,null,null,null,null,null,null,null,null,null,"     On a Mac, an applescript file (MovementAnalyser.scpt) must be in the following location on your computer."]
[null,"User/Library/Application Scripts/com.microsoft.Excel/",null,null,null,null,null,null,null,null,null,null,null,null,null,null,null,null,null,null,null,null,null,null,null,null,null,"User/Library/Application Scripts/com.microsoft.Excel/"]
[null,"Libraryは、Finderメニューで「移動」を選択、optionキーを押すと「ライブラリ」として見つかります。",null,null,null,null,null,null,null,null,null,null,null,null,null,null,null,null,null,null,null,null,null,null,null,null,null,"To find Library, select \"Go\" in the Finder menu and press the 'Option' key."]
[]
[null,"システムは時々更新されます。",null,null,null,null,null,null,null,null,null,null,null,null,null,null,null,null,null,null,null,null,null,null,null,null,null,"Ths system is occasionally revised."]
[null,"常に最新バージョンをお使いください。",null,null,null,null,null,null,null,null,null,null,null,null,null,null,null,null,null,null,null,null,null,null,null,null,null,"Please use the latest version."]
[]
[]
["マクロの種類と機能　　（下記ワークフローを参照）　　　　　　　",null,null,null,null,null,null,null,null,null,null,null,null,null,null,null,null,null,null,null,null,null,null,null,null,null,"* Macros and their functions (Refer to the work flows below)"]
["１．Ch_Creator (C) : ",null,"Check (Ch) ファイを作成（未加工データを導入、分析の基礎となるデータセットを整備）",null,null,null,null,null,null,null,null,null,null,null,null,null,null,null,null,null,null,null,null,null,null,null," 1. Ch_Creator (C) : ",null,"Creates a check (Ch) file (Incorporates raw data and creates a data set for analysis)"]
["２．An_Creator (A)：",null,"Analysis (An) ファイルを作成（Chファイルからデータを導入、概要分析）",null,null,null,null,null,null,null,null,null,null,null,null,null,null,null,null,null,null,null,null,null,null,null," 2. An_Creator (A)：",null,"Creates an analysis (An) file (introduces data from a check file and conducts an overview analysis.)"]
["３．SheetGenerator (G): ",null,"Anファイルに分析用シートを追加",null,null,null,null,null,null,null,null,null,null,null,null,null,null,null,null,null,null,null,null,null,null,null," 3. SheetGenerator (G): ",null,"Generates one or a pair of sheets, each specialised for a particular analysis, to an analysis file."]
["４．SheetProcessor (P): ",null,"Ch, An両ファイルで、シート別の処理",null,null,null,null,null,null,null,null,null,null,null,null,null,null,null,null,null,null,null,null,null,null,null," 4. SheetProcessor (P): ",null,"Processes a sheet. (What it does depends on the type of the sheet.)"]
["５．SubMenu (M):",null,"補助メニューの表示",null,null,null,null,null,null,null,null,null,null,null,null,null,null,null,null,null,null,null,null,null,null,null," 5. SubMenu (M):",null,"Shows the sub-menu."]
[]
["各マクロにはショートカットキーが設定されています。",null,null,null,null,null,null,null,null,null,null,null,null,null,null,null,null,null,null,null,null,null,null,null,null,null,"* Short-cut keys are preset for each macro."]
["　ウィンドウズでは[Ctrl]+[Shift]、マックでは[option]+[command]+[shift]を押し下げた状態で",null,null,null,null,null,null,null,null,null,null,null,null,null,null,null,null,null,null,null,null,null,null,null,null,null,"　Press [Ctrl]+[Shift] in Windows, or [option]+[command]+[shift] in Mac"]
["　上記マクロ名に続く括弧内の文字をタイプしてください。",null,null,null,null,null,null,null,null,null,null,null,null,null,null,null,null,null,null,null,null,null,null,null,null,null,"  and type the letter in brackets following the macro names above."]
[]
["マクロを実行するとまず、その処理内容の説明が表示されます。その時点で処理をキャンセルできます。",null,null,null,null,null,null,null,null,null,null,null,null,null,null,null,null,null,null,null,null,null,null,null,null,null,"* Macros first show a message telling what they will do. Cancelling the run is possible at this point."]
[]
["分析シートの使い方については本システムのサイトを参照してください。",null,null,null,null,null,null,null,null,null,null,null,null,null,null,null,null,null,null,null,null,null,null,null,null,null,"* For how to use the sheets each specialized for a particular analysis, refer to the accounts on the right-hand side."]
[]
[]
["本システム（MovementAnalyser.xlsm）について",null,null,null,null,null,null,null,null,null,null,null,null,null,null,null,null,null,null,null,null,null,null,null,null,null,"About this system (MovementAnalyser.xlsm)"]
[null,"本システムは、測位間隔が一定のGPSデータを対象にします。",null,null,null,null,null,null,null,null,null,null,null,null,null,null,null,null,null,null,null,null,null,null,null,null,null,"This system handles GPS data sampled at a regular time interval."]
[null,"  ただし、データ欠損はあって構いません。データ欠損も意味あるデータとして扱います。",null,null,null,null,null,null,null,null,null,null,null,null,null,null,null,null,null,null,null,null,null,null,null,null,null,"   Data missing is acceptable. The system treats it as data of some implication."]
[null,"　測位スケジュールの異なる期間の混在もある程度許容されます。",null,null,null,null,null,null,null,null,null,null,null,null,null,null,null,null,null,null,null,null,null,null,null,null,null,"   A mixture of different sampling schedules is also acceptable to some degree."]
[]
[null,"本システムはさまざまな方法で各時点の動きを数値化します。",null,null,null,null,null,null,null,null,null,null,null,null,null,null,null,null,null,null,null,null,null,null,null,null,null,"Using various methods, the system quantifies the animal movement at each point in time."]
[null,"そのデータを時間軸で図化して、移動パターンを明らかにします。",null,null,null,null,null,null,null,null,null,null,null,null,null,null,null,null,null,null,null,null,null,null,null,null,null,"Then, it plots the results in timeline charts to reveal the pattern of animal movements."]
[]
[null,"本システムは現在開発中で、未発表の内容が含まれます。",null,null,null,null,null,null,null,null,null,null,null,null,null,null,null,null,null,null,null,null,null,null,null,null,null,"This system is under development and includes unpublished techniques."]
[null,"ファイルの取り扱いにご注意ください。",null,null,null,null,null,null,null,null,null,null,null,null,null,null,null,null,null,null,null,null,null,null,null,null,null,"Please pay due attention when handling this file."]
[]
[]
["Copyright©HirofumiHIRAKAWA",null,null,null,null,null,null,null,null,null,null,null,null,null,null,null,null,null,null,null,null,null,null,null,null,null,"Copyright©HirofumiHirakawa"]
[]
[]
["基本的なワークフロー",null,null,null,null,null,null,null,null,null,null,null,null,null,null,null,null,null,null,null,null,null,null,null,null,null,"Basic work flow"]
[]
[null,null,null,"未加工データの",null,null,null,null,null,null,null,null,null,null,null,null,null,null,null,null,null,null,null,null,null,null,null,null,null,"Excel file "]
[null,null,null,"エクセルファイル",null,null,null,null,null,null,null,null,null,null,null,null,null,null,null,null,null,null,null,null,null,null,null,null,null,"with raw data"]
[null,null,"Ch_Creator >","V","チェック (Ch) ファイを作成し、外れ値を除外",null,null,null,null,null,null,null,null,null,null,null,null,null,null,null,null,null,null,null,null,null,null,null,"Ch_Creator >","V","Creates a check (Ch) file and removes outliers."]
[null,null,null,"Chファイル",null,null,null,null,null,null,null,null,null,null,null,null,null,null,null,null,null,null,null,null,null,null,null,null,null,"Ch File"]
[null,null,"SheetProcessor >","V","各Checkシートの個別処理",null,null,null,null,null,null,null,null,null,null,null,null,null,null,null,null,null,null,null,null,null,null,null,"SheetProcessor >","V","Processes each sheet, separately."]
[null,null,null,"Chファイル",null,null,null,null,null,null,null,null,null,null,null,null,null,null,null,null,null,null,null,null,null,null,null,null,null,"Ch File"]
[null,null,"An_Creator >","V","分析 (An) ファイルを作成し、概要分析を実行",null,null,null,null,null,null,null,null,null,null,null,null,null,null,null,null,null,null,null,null,null,null,null,"An_Creator >","V","Creates an analysis (An) file for analysis and conducts the overview analysis."]
[null,null,null,"Anファイル",null,null,null,null,null,null,null,null,null,null,null,null,null,null,null,null,null,null,null,null,null,null,null,null,null,"An File"]
[null,null,"SheetGenerator >","V","分析シート（Ov, Ac, PA, PP）を追加",null,null,null,null,null,null,null,null,null,null,null,null,null,null,null,null,null,null,null,null,null,null,null,"SheetGenerator >","V","Adds sheets (Ov, Ac, PA, PP), each for specific analysis, as needed."]
[null,null,null,"Anファイル",null,null,null,null,null,null,null,null,null,null,null,null,null,null,null,null,null,null,null,null,null,null,null,null,null,"An File"]
[null,null,"SheetProcessor >","V","各分析シートの個別処理",null,null,null,null,null,null,null,null,null,null,null,null,null,null,null,null,null,null,null,null,null,null,null,"SheetProcessor >","V","Processes each sheet, separately."]
[null,null,null,"Anファイル",null,null,null,null,null,null,null,null,null,null,null,null,null,null,null,null,null,null,null,null,null,null,null,null,null,"An File"]
[null,null,"SheetProcessor >","V","kmlファイルの作成",null,null,null,null,null,null,null,null,null,null,null,null,null,null,null,null,null,null,null,null,null,null,null,"SheetProcessor >","V","Creates a kml file."]
[null,null,null,"kmlファイル",null,null,null,null,null,null,null,null,null,null,null,null,null,null,null,null,null,null,null,null,null,null,null,null,null,"kml File"]
[null,null,null,"（Google Earth 出力)",null,null,null,null,null,null,null,null,null,null,null,null,null,null,null,null,null,null,null,null,null,null,null,null,null,"(Output for Google Earth)"]

{"sheet":"Charts","index":1,"n_rows":302,"n_cols":82,"rows_kept":302,"cut":false,"hidden":true,"merged":[]}
["ColorSeries",null,null,null,null,null,null,null,null,null,null,null,null,null,null,null,null,null,null,null,null,null,null,null,null,null,null,null,null,null,null,null,null,null,null,null,null,null,null,null,null,null,null,null,null,null,null,null,null,null,null,null,"高度H",null,"横幅W",null,null,null,"H/W","W/H","片Angle=30",null,"理論W/H","理論H/W"]
[1,0,null,null,null,null,null,null,null,null,null,null,null,null,null,null,null,null,null,null,null,null,null,null,null,null,null,null,null,null,null,null,null,null,null,null,null,null,null,null,null,null,null,null,null,null,null,null,null,null,null,null,128.4,null,148.80000000000001,null,null,null,{"$f":"BA2/BC2","v":0.86290322580645162},{"$f":"BC2/BA2","v":1.1588785046728973},{"$f":"DEGREES(ATAN(BH2/2))","v":30.089686238776672},null,{"$f":"TAN(RADIANS(30))*2","v":1.1547005383792512},{"$f":"1/BK2","v":0.86602540378443882}]
[2,0,null,null,null,null,null,null,null,null,null,null,null,null,null,null,null,null,null,null,null,null,null,null,null,null,null,null,null,null,null,null,null,null,null,null,null,null,null,null,null,null,null,null,null,null,null,null,null,null,null,null,77.2,null,89.29,null,null,null,{"$f":"BA3/BC3","v":0.86459849927203491},{"$f":"BC3/BA3","v":1.1566062176165803},{"$f":"DEGREES(ATAN(BH3/2))","v":30.040928372857099}]
[3,0,null,null,null,null,null,null,null,null,null,null,null,null,null,null,null,null,null,null,null,null,null,null,null,null,null,null,null,null,null,null,null,null,null,null,null,null,null,null,null,null,null,null,null,null,null,null,null,null,null,null,57.38,null,66.459999999999994,null,null,null,0.86337646704784843,1.1582432903450679,{"$f":"DEGREES(ATAN(BH4/2))","v":30.076060890243468}]
[4,0,null,null,null,null,null,null,null,null,null,null,null,null,null,null,null,null,null,null,null,null,null,null,null,null,null,null,null,null,null,null,null,null,null,null,null,null,null,null,null,null,null,null,null,null,null,null,null,null,null,null,31.59,null,36.5,null,null,null,0.86547945205479448,1.1554289332067109,30.015647762962942]
[5,0,null,null,null,null,null,null,null,null,null,null,null,null,null,null,null,null,null,null,null,null,null,null,null,null,null,null,null,null,null,null,null,null,null,null,null,null,null,null,null,null,null,null,null,null,null,null,null,null,null,null,11.78,null,13.62,null,null,null,0.86490455212922168,1.1561969439728352,30.032141230326413]
[6,0,null,null,null,null,null,null,null,null,null,null,null,null,null,null,null,null,null,null,null,null,null,null,null,null,null,null,null,null,null,null,null,null,null,null,null,null,null,null,null,null,null,null,null,null,null,null,null,null,null,null,6.95,null,8,null,null,null,0.86875000000000002,1.1510791366906474,29.922129856063549]
[7,0,null,null,null,null,null,null,null,null,null,null,null,null,null,null,null,null,null,null,null,null,null,null,null,null,null,null,null,null,null,null,null,null,null,null,null,null,null,null,null,null,null,null,null,null,null,null,null,null,null,null,400,null,462,null,null,null,0.86580086580086579,1.155,30.006433790459084]
[8,0,null,null,null,null,null,null,null,null,null,null,null,null,null,null,null,null,null,null,null,null,null,null,null,null,null,null,null,null,null,null,null,null,null,null,null,null,null,null,null,null,null,null,null,null,null,null,null,null,null,null,211,null,244,null,null,null,0.86475409836065575,1.1563981042654028,30.036460354934768]
[9,0,null,null,null,null,null,null,null,null,null,null,null,null,null,null,null,null,null,null,null,null,null,null,null,null,null,null,null,null,null,null,null,null,null,null,null,null,null,null,null,null,null,null,null,null,null,null,null,null,null,null,702,null,800,null,null,null,0.87749999999999995,1.1396011396011396,29.674515008078956]
[10,0,null,null,null,null,null,null,null,null,null,null,null,null,null,null,null,null,null,null,null,null,null,null,null,null,null,null,null,null,null,null,null,null,null,null,null,null,null,null,null,null,null,null,null,null,null,null,null,null,null,null,804,null,930,null,null,null,0.86451612903225805,1.1567164179104477,30.043294116937105]
[11,0,null,null,null,null,null,null,null,null,null,null,null,null,null,null,null,null,null,null,null,null,null,null,null,null,null,null,null,null,null,null,null,null,null,null,null,null,null,null,null,null,null,null,null,null,null,null,null,null,null,null,351,null,405,null,null,null,0.8666666666666667,1.1538461538461537,29.981639368849333]
[12,0,null,null,null,null,null,null,null,null,null,null,null,null,null,null,null,null,null,null,null,null,null,null,null,null,null,null,null,null,null,null,null,null,null,null,null,null,null,null,null,null,null,null,null,null,null,null,null,null,null,null,210,null,242,null,null,null,0.86776859504132231,1.1523809523809523,29.950136537927346]
[13,0,null,null,null,null,null,null,null,null,null,null,null,null,null,null,null,null,null,null,null,null,null,null,null,null,null,null,null,null,null,null,null,null,null,null,null,null,null,null,null,null,null,null,null,null,null,null,null,null,null,null,70,null,81,null,null,null,0.86419753086419748,1.1571428571428573,30.052447711189831]
[14,0,null,null,null,null,null,null,null,null,null,null,null,null,null,null,null,null,null,null,null,null,null,null,null,null,null,null,null,null,null,null,null,null,null,null,null,null,null,null,null,null,null,null,null,null,null,null,null,null,null,null,49,null,56.9,null,null,null,0.86115992970123023,1.1612244897959183,30.139975090268891]
[15,0,null,null,null,null,null,null,null,null,null,null,null,null,null,null,null,null,null,null,null,null,null,null,null,null,null,null,null,null,null,null,null,null,null,null,null,null,null,null,null,null,null,null,null,null,null,null,null,null,null,null,35,null,40.5,null,null,null,0.86419753086419748,1.1571428571428573,30.052447711189831]
[16,0,null,null,null,null,null,null,null,null,null,null,null,null,null,null,null,null,null,null,null,null,null,null,null,null,null,null,null,null,null,null,null,null,null,null,null,null,null,null,null,null,null,null,null,null,null,null,null,null,null,null,21,null,24.56,null,null,null,0.85504885993485347,1.1695238095238094,30.317469453809807]
[17,0,null,null,null,null,null,null,null,null,null,null,null,null,null,null,null,null,null,null,null,null,null,null,null,null,null,null,null,null,null,null,null,null,null,null,null,null,null,null,null,null,null,null,null,null,null,null,null,null,null,null,7,null,8.6,null,null,null,0.81395348837209303,1.2285714285714284,31.561811841649348]
[18,0]
[19,0,null,null,null,null,null,null,null,null,null,null,null,null,null,null,null,null,null,null,null,null,null,null,null,null,null,null,null,null,null,null,null,null,null,null,null,null,null,null,null,null,null,null,null,null,null,null,null,null,null,null,null,null,"hgt1",null,null,null,50]
[20,0,null,null,null,null,null,null,null,null,null,null,null,null,null,null,null,null,null,null,null,null,null,null,null,null,null,null,null,null,null,null,null,null,null,null,null,null,null,null,null,null,null,null,null,null,null,null,null,null,null,null,null,null,"hgt2",null,null,null,1000]
[21,0,null,null,null,null,null,null,null,null,null,null,null,null,null,null,null,null,null,null,null,null,null,null,null,null,null,null,null,null,null,null,null,null,null,null,null,null,null,null,null,null,null,null,null,null,null,null,null,null,null,null,null,null,0,null,null,null,{"$f":"BC22*(1+(BG$21+BG$20-BC22)/(BG$21)/2)","v":0},{"$f":"BC22*(1+(BG$21-BC22)/(BG$21-BG$20)/2)","v":0},{"$f":"BC22","v":0}]
[22,0,null,null,null,null,null,null,null,null,null,null,null,null,null,null,null,null,null,null,null,null,null,null,null,null,null,null,null,null,null,null,null,null,null,null,null,null,null,null,null,null,null,null,null,null,null,null,null,null,null,null,null,null,25,null,null,null,{"$f":"BC23*(1+(BG$21+BG$20-BC23)/(BG$21)/2)","v":37.8125},37.828947368421048,{"$f":"BC23","v":25}]
[23,0,null,null,null,null,null,null,null,null,null,null,null,null,null,null,null,null,null,null,null,null,null,null,null,null,null,null,null,null,null,null,null,null,null,null,null,null,null,null,null,null,null,null,null,null,null,null,null,null,null,null,null,null,50,null,null,null,75,75,50]
[24,0,null,null,null,null,null,null,null,null,null,null,null,null,null,null,null,null,null,null,null,null,null,null,null,null,null,null,null,null,null,null,null,null,null,null,null,null,null,null,null,null,null,null,null,null,null,null,null,null,null,null,null,null,100,null,null,null,147.5,147.36842105263156,100]
[25,0,null,null,null,null,null,null,null,null,null,null,null,null,null,null,null,null,null,null,null,null,null,null,null,null,null,null,null,null,null,null,null,null,null,null,null,null,null,null,null,null,null,null,null,null,null,null,null,null,null,null,null,null,200,null,null,null,285,284.21052631578948,200]
[26,0,null,null,null,null,null,null,null,null,null,null,null,null,null,null,null,null,null,null,null,null,null,null,null,null,null,null,null,null,null,null,null,null,null,null,null,null,null,null,null,null,null,null,null,null,null,null,null,null,null,null,null,null,500,null,null,null,637.5,631.57894736842104,500]
[27,0,null,null,null,null,null,null,null,null,null,null,null,null,null,null,null,null,null,null,null,null,null,null,null,null,null,null,null,null,null,null,null,null,null,null,null,null,null,null,null,null,null,null,null,null,null,null,null,null,null,null,null,null,750,null,null,null,862.49999999999989,848.68421052631572,750]
[28,0,null,null,null,null,null,null,null,null,null,null,null,null,null,null,null,null,null,null,null,null,null,null,null,null,null,null,null,null,null,null,null,null,null,null,null,null,null,null,null,null,null,null,null,null,null,null,null,null,null,null,null,null,900,null,null,null,967.5,947.36842105263156,900]
[29,0,null,null,null,null,null,null,null,null,null,null,null,null,null,null,null,null,null,null,null,null,null,null,null,null,null,null,null,null,null,null,null,null,null,null,null,null,null,null,null,null,null,null,null,null,null,null,null,null,null,null,null,null,990,null,null,null,1019.7,995.21052631578948,990]
[30,0,null,null,null,null,null,null,null,null,null,null,null,null,null,null,null,null,null,null,null,null,null,null,null,null,null,null,null,null,null,null,null,null,null,null,null,null,null,null,null,null,null,null,null,null,null,null,null,null,null,null,null,null,1000,null,null,null,1025,1000,1000]
[31,0,null,null,null,null,null,null,null,null,null,null,null,null,null,null,null,null,null,null,null,null,null,null,null,null,null,null,null,null,null,null,null,null,null,null,null,null,null,null,null,null,null,null,null,null,null,null,null,null,null,null,null,null,1050,null,null,null,{"$f":"BC32*(1+(BG$21+BG$20-BC32)/(BG$21)/2)","v":1050},1022.3684210526316,1050]
[32,0,null,null,null,null,null,null,null,null,null,null,null,null,null,null,null,null,null,null,null,null,null,null,null,null,null,null,null,null,null,null,null,null,null,null,null,null,null,null,null,null,null,null,null,null,null,null,null,null,null,null,null,null,1100,null,null,null,1072.5,1042.1052631578948,1100]
[33,0,null,null,null,null,null,null,null,null,null,null,null,null,null,null,null,null,null,null,null,null,null,null,null,null,null,null,null,null,null,null,null,null,null,null,null,null,null,null,null,null,null,null,null,null,null,null,null,null,null,null,null,null,1200,null,null,null,1110,1073.6842105263158,1200]
[34,0]
[35,0]
[36,0]
[37,0]
[38,0]
[39,0]
[40,0]
[41,0]
[42,0]
[43,0]
[44,0]
[45,0]
[46,0]
[47,0]
[48,0]
[49,0]
[50,0]
[51,0]
[52,0]
[53,0]
[54,0]
[55,0]
[56,0,null,null,null,null,null,null,null,null,null,null,null,null,null,null,null,null,null,null,null,null,null,null,null,null,null,null,null,null,null,null,null,null,null,null,null,null,null,null,null,null,null,null,null,null,null,null,null,null,null,null,null,null,null,null,null,21,-2,-6,null,null,null,null,null,null,null,null,null,null,null,null,null,null,null,null,null,null,-2,-5,-2,-5]
[57,0,null,null,null,null,null,null,null,null,null,null,null,null,null,null,null,null,null,null,null,null,null,null,null,null,null,null,null,null,null,null,null,null,null,null,null,null,null,null,null,null,null,null,null,null,null,null,null,null,null,null,null,null,null,null,null,20,-2,-6,null,null,null,null,null,null,null,null,null,null,null,null,null,null,null,null,null,null,-2,-4,-2,-4]
[58,0,null,null,null,null,null,null,null,null,null,null,null,null,null,null,null,null,null,null,null,null,null,null,null,null,null,null,null,null,null,null,null,null,null,null,null,null,null,null,null,null,null,null,null,null,null,null,null,null,null,null,null,null,null,null,null,19,-2,-5,null,null,null,null,null,null,null,null,null,null,null,null,null,null,null,null,null,null,-2.1,-2.9,-2.1,-2.9]
[59,0,null,null,null,null,null,null,null,null,null,null,null,null,null,null,null,null,null,null,null,null,null,null,null,null,null,null,null,null,null,null,null,null,null,null,null,null,null,null,null,null,null,null,null,null,null,null,null,null,null,null,null,null,null,null,null,18,-2,-4,null,null,null,null,null,null,null,null,null,null,null,null,null,null,null,null,null,null,-2.9,-2.1,-2.9,-2.1]
[60,0,null,null,null,null,null,null,null,null,null,null,null,null,null,null,null,null,null,null,null,null,null,null,null,null,null,null,null,null,null,null,null,null,null,null,null,null,null,null,null,null,null,null,null,null,null,null,null,null,null,null,null,null,null,null,null,17,-2.1,-2.9,null,null,null,null,null,null,null,null,null,null,null,null,null,null,null,null,null,null,-4,-2,-4,-2]
[61,0,null,null,null,null,null,null,null,null,null,null,null,null,null,null,null,null,null,null,null,null,null,null,null,null,null,null,null,null,null,null,null,null,null,null,null,null,null,null,null,null,null,null,null,null,null,null,null,"angle","radian","cos","sin",4.3,{"$f":"BB62","v":4.3},5.8,{"$f":"BD62","v":5.8},16,-2.9,-2.1,{"$f":"$BH62","v":-2.1},null,null,{"$f":"$BH62","v":-2.1},{"$f":"$BH62","v":-2.1},null,null,null,null,null,null,null,null,null,null,null,null,null,-5.0999999999999996,-1.9,-5.0999999999999996,-1.9]
[62,0,null,null,null,null,null,null,null,null,null,null,null,null,null,null,null,null,null,null,null,null,null,null,null,null,null,null,null,null,null,null,null,null,null,null,null,null,null,null,null,null,null,null,null,null,null,null,null,0,{"$f":"RADIANS(AX63)","v":0},{"$f":"COS(AY63)","v":1},{"$f":"SIN(AY63)","v":0},{"$f":"$AZ63*BB$62","v":4.3},{"$f":"$BA63*BC$62","v":0},{"$f":"$AZ63*BD$62","v":5.8},{"$f":"$BA63*BE$62","v":0},15,-4.0999999999999996,-1.9,{"$f":"$BH63","v":-1.9},null,null,null,-1.9,null,null,null,null,null,null,null,null,null,null,null,null,null,-5.7,-1,-5.7,-1]
[63,0,null,null,null,null,null,null,null,null,null,null,null,null,null,null,null,null,null,null,null,null,null,null,null,null,null,null,null,null,null,null,null,null,null,null,null,null,null,null,null,null,null,null,null,null,null,null,null,15,{"$f":"RADIANS(AX64)","v":0.26179938779914941},{"$f":"COS(AY64)","v":0.96592582628906831},{"$f":"SIN(AY64)","v":0.25881904510252074},{"$f":"AZ64*BB$62","v":4.1534810530429933},1.1129218939408392,{"$f":"$AZ64*BD$62","v":5.6023697924765958},{"$f":"$BA64*BE$62","v":1.5011504615946203},14,-4.7,-1,-1,null,null,null,-1,null,null,null,null,null,null,null,null,null,null,null,null,null,-5.0999999999999996,-0.1,-5.0999999999999996,-0.1]
[64,0,null,null,null,null,null,null,null,null,null,null,null,null,null,null,null,null,null,null,null,null,null,null,null,null,null,null,null,null,null,null,null,null,null,null,null,null,null,null,null,null,null,null,null,null,null,null,null,30,0.52359877559829882,0.86602540378443871,0.49999999999999994,3.7239092362730863,2.1499999999999995,5.0229473419497443,2.8999999999999995,13,-4.0999999999999996,-0.1,-0.1,null,null,-0.1,-0.1,null,null,null,null,null,null,null,null,null,null,null,null,null,-4,0,-4,0]
[65,0,null,null,null,null,null,null,null,null,null,null,null,null,null,null,null,null,null,null,null,null,null,null,null,null,null,null,null,null,null,null,null,null,null,null,null,null,null,null,null,null,null,null,null,null,null,null,null,45,0.78539816339744828,0.70710678118654757,0.70710678118654746,3.0405591591021546,3.0405591591021541,4.1012193308819755,4.1012193308819755,12,-2.9,0.1,0.1,null,null,0.1,0.1,null,null,null,null,null,null,null,null,null,null,null,null,null,-2.9,0.1,-2.9,0.1]
[66,0,null,null,null,null,null,null,null,null,null,null,null,null,null,null,null,null,null,null,null,null,null,null,null,null,null,null,null,null,null,null,null,null,null,null,null,null,null,null,null,null,null,null,null,null,null,null,null,60,1.0471975511965976,0.50000000000000011,0.8660254037844386,2.1500000000000004,3.7239092362730859,2.9000000000000004,5.0229473419497435,11,-2.1,0.9,0.9,null,null,0.9,0.9,null,null,null,null,null,null,null,null,null,null,null,null,null,-2.1,0.9,-2.1,0.9]
[67,0,null,null,null,null,null,null,null,null,null,null,null,null,null,null,null,null,null,null,null,null,null,null,null,null,null,null,null,null,null,null,null,null,null,null,null,null,null,null,null,null,null,null,null,null,null,null,null,75,1.3089969389957472,0.25881904510252074,0.96592582628906831,1.1129218939408392,4.1534810530429933,1.5011504615946203,5.6023697924765958,10,-2,2,2,null,null,2,2,null,null,null,null,null,null,null,null,null,null,null,null,null,-2,2,-2,2]
[68,0,null,null,null,null,null,null,null,null,null,null,null,null,null,null,null,null,null,null,null,null,null,null,null,null,null,null,null,null,null,null,null,null,null,null,null,null,null,null,null,null,null,null,null,null,null,null,null,90,1.5707963267948966,6.123233995736766E-17,1,2.6329906181668092E-16,4.3,3.5514757175273243E-16,5.8,9,-2,3,3,null,null,3,3,null,null,null,null,null,null,null,null,null,null,null,null,null,-2,3,-2,3]
[69,0,null,null,null,null,null,null,null,null,null,null,null,null,null,null,null,null,null,null,null,null,null,null,null,null,null,null,null,null,null,null,null,null,null,null,null,null,null,null,null,null,null,null,null,null,null,null,null,105,1.8325957145940461,-0.25881904510252085,0.96592582628906831,-1.1129218939408396,4.1534810530429933,-1.501150461594621,5.6023697924765958,8,-2,4,4,null,null,null,4,null,null,null,null,null,null,null,null,null,null,null,null,null,-2,4,-2,4]
[70,0,null,null,null,null,null,null,null,null,null,null,null,null,null,null,null,null,null,null,null,null,null,null,null,null,null,null,null,null,null,null,null,null,null,null,null,null,null,null,null,null,null,null,null,null,null,null,null,120,2.0943951023931953,-0.49999999999999978,0.86602540378443882,-2.149999999999999,3.7239092362730868,-2.8999999999999986,5.0229473419497452,7,-1.9,5,5,null,null,null,5,null,null,null,null,null,null,null,null,null,null,null,null,null,-1.9,5,-1.9,5]
[71,0,null,null,null,null,null,null,null,null,null,null,null,null,null,null,null,null,null,null,null,null,null,null,null,null,null,null,null,null,null,null,null,null,null,null,null,null,null,null,null,null,null,null,null,null,null,null,null,135,2.3561944901923448,-0.70710678118654746,0.70710678118654757,-3.0405591591021541,3.0405591591021546,-4.1012193308819755,4.1012193308819755,6,-1,5.4,5.4,null,null,null,5.4,null,null,null,null,null,null,null,null,null,null,null,null,null,-1,5.4,-1,5.4]
[72,0,null,null,null,null,null,null,null,null,null,null,null,null,null,null,null,null,null,null,null,null,null,null,null,null,null,null,null,null,null,null,null,null,null,null,null,null,null,null,null,null,null,null,null,null,null,null,null,150,2.6179938779914944,-0.86602540378443871,0.49999999999999994,-3.7239092362730863,2.1499999999999995,-5.0229473419497443,2.8999999999999995,5,-0.1,5,5,null,null,null,5,null,null,null,null,null,null,null,null,null,null,null,null,null,-0.1,5,-0.1,5]
[73,0,null,null,null,null,null,null,null,null,null,null,null,null,null,null,null,null,null,null,null,null,null,null,null,null,null,null,null,null,null,null,null,null,null,null,null,null,null,null,null,null,null,null,null,null,null,null,null,165,2.8797932657906435,-0.9659258262890682,0.25881904510252102,-4.1534810530429933,1.1129218939408403,-5.6023697924765958,1.5011504615946218,4,0,4,4,null,4,null,4,null,null,null,null,null,null,null,null,null,null,null,null,null,0,4,0,4]
[74,0,null,null,null,null,null,null,null,null,null,null,null,null,null,null,null,null,null,null,null,null,null,null,null,null,null,null,null,null,null,null,null,null,null,null,null,null,null,null,null,null,null,null,null,null,null,null,null,180,3.1415926535897931,-1,1.2246467991473532E-16,-4.3,5.2659812363336185E-16,-5.8,7.1029514350546487E-16,3,0,3,3,null,3,null,3,null,null,null,null,null,null,null,null,null,null,null,null,null,0,3,0,3]
[75,0,null,null,null,null,null,null,null,null,null,null,null,null,null,null,null,null,null,null,null,null,null,null,null,null,null,null,null,null,null,null,null,null,null,null,null,null,null,null,null,null,null,null,null,null,null,null,null,195,3.4033920413889427,-0.96592582628906831,-0.25881904510252079,-4.1534810530429933,-1.1129218939408394,-5.6023697924765958,-1.5011504615946205,2,0,2,2,null,2,null,2,null,null,null,null,null,null,null,null,null,null,null,null,null,0,2,0,2]
[76,0,null,null,null,null,null,null,null,null,null,null,null,null,null,null,null,null,null,null,null,null,null,null,null,null,null,null,null,null,null,null,null,null,null,null,null,null,null,null,null,null,null,null,null,null,null,null,null,210,3.6651914291880923,-0.8660254037844386,-0.50000000000000011,-3.7239092362730859,-2.1500000000000004,-5.0229473419497435,-2.9000000000000004,1,0,1,1,null,1,null,1,null,null,null,null,null,null,null,null,null,null,null,null,null,0,1,0,1]
[77,0,null,null,null,null,null,null,null,null,null,null,null,null,null,null,null,null,null,null,null,null,null,null,null,null,null,null,null,null,null,null,null,null,null,null,null,null,null,null,null,null,null,null,null,null,null,null,null,225,3.9269908169872414,-0.70710678118654768,-0.70710678118654735,-3.040559159102155,-3.0405591591021537,-4.1012193308819764,-4.1012193308819747,null,0,0,0,{"$f":"$BH78","v":0},null,null,null,null,null,null,null,null,null,null,null,null,null,null,null,null,0,0,0,0]
[78,0,null,null,null,null,null,null,null,null,null,null,null,null,null,null,null,null,null,null,null,null,null,null,null,null,null,null,null,null,null,null,null,null,null,null,null,null,null,null,null,null,null,null,null,null,null,null,null,240,4.1887902047863905,-0.50000000000000044,-0.86602540378443837,-2.1500000000000017,-3.723909236273085,-2.9000000000000026,-5.0229473419497426,1,0,-1,{"$f":"$BH79","v":-1},null,-1,null,-1,null,null,null,null,null,null,null,null,null,null,null,null,null,0.1,-1.9,0,-1]
[79,0,null,null,null,null,null,null,null,null,null,null,null,null,null,null,null,null,null,null,null,null,null,null,null,null,null,null,null,null,null,null,null,null,null,null,null,null,null,null,null,null,null,null,null,null,null,null,null,255,4.4505895925855405,-0.25881904510252063,-0.96592582628906831,-1.1129218939408387,-4.1534810530429933,-1.5011504615946196,-5.6023697924765958,2,0,-2.1,-2.1,null,-2.1,null,-2.1,null,null,null,null,null,null,null,null,null,null,null,null,null,0.9,-2.9,0,-2]
[80,0,null,null,null,null,null,null,null,null,null,null,null,null,null,null,null,null,null,null,null,null,null,null,null,null,null,null,null,null,null,null,null,null,null,null,null,null,null,null,null,null,null,null,null,null,null,null,null,270,4.7123889803846897,-1.8369701987210297E-16,-1,-7.8989718545004277E-16,-4.3,-1.0654427152581972E-15,-5.8,3,0.1,-3.1,-3.1,null,-3.1,null,-3.1,null,null,null,null,null,null,null,null,null,null,null,null,null,2,-3,0,-3]
[81,0,null,null,null,null,null,null,null,null,null,null,null,null,null,null,null,null,null,null,null,null,null,null,null,null,null,null,null,null,null,null,null,null,null,null,null,null,null,null,null,null,null,null,null,null,null,null,null,285,4.9741883681838388,0.2588190451025203,-0.96592582628906842,1.1129218939408372,-4.1534810530429942,1.5011504615946176,-5.6023697924765967,4,1,-3.9,-3.9,null,-3.9,null,-3.9,null,null,null,null,null,null,null,null,null,null,null,null,null,3,-3,0,-4]
[82,0,null,null,null,null,null,null,null,null,null,null,null,null,null,null,null,null,null,null,null,null,null,null,null,null,null,null,null,null,null,null,null,null,null,null,null,null,null,null,null,null,null,null,null,null,null,null,null,300,5.2359877559829888,0.5,-0.8660254037844386,2.15,-3.7239092362730859,2.9,-5.0229473419497435,5,2,-4,-4,null,null,null,-4,null,null,null,null,null,null,null,null,null,null,null,null,null,4,-3,0.1,-5]
[83,0,null,null,null,null,null,null,null,null,null,null,null,null,null,null,null,null,null,null,null,null,null,null,null,null,null,null,null,null,null,null,null,null,null,null,null,null,null,null,null,null,null,null,null,null,null,null,null,315,5.497787143782138,0.70710678118654735,-0.70710678118654768,3.0405591591021537,-3.040559159102155,4.1012193308819747,-4.1012193308819764,6,3,-4,-4,null,null,null,-4,null,null,null,null,null,null,null,null,null,null,null,null,null,5.0999999999999996,-2.9,1,-5.4]
[84,0,null,null,null,null,null,null,null,null,null,null,null,null,null,null,null,null,null,null,null,null,null,null,null,null,null,null,null,null,null,null,null,null,null,null,null,null,null,null,null,null,null,null,null,null,null,null,null,330,5.7595865315812871,0.86602540378443837,-0.50000000000000044,3.723909236273085,-2.1500000000000017,5.0229473419497426,-2.9000000000000026,7,4,-4,-4,null,null,null,-4,null,null,null,null,null,null,null,null,null,null,null,null,null,5.9,-2.1,1.9,-5]
[85,0,null,null,null,null,null,null,null,null,null,null,null,null,null,null,null,null,null,null,null,null,null,null,null,null,null,null,null,null,null,null,null,null,null,null,null,null,null,null,null,null,null,null,null,null,null,null,null,345,6.0213859193804371,0.96592582628906831,-0.25881904510252068,4.1534810530429933,-1.112921893940839,5.6023697924765958,-1.5011504615946198,8,5.0999999999999996,-3.8,-3.8,null,null,null,null,null,null,null,null,null,null,null,null,null,null,null,null,null,6,-1,2,-4]
[86,0,null,null,null,null,null,null,null,null,null,null,null,null,null,null,null,null,null,null,null,null,null,null,null,null,null,null,null,null,null,null,null,null,null,null,null,null,null,null,null,null,null,null,null,null,null,null,null,360,6.2831853071795862,1,-2.4492935982947064E-16,4.3,-1.0531962472667237E-15,5.8,-1.4205902870109297E-15,9,5.8,-3,-3,null,null,null,null,null,null,null,null,null,null,null,null,null,null,null,null,null,5.9,9.9999999999999978E-2,2,-3]
[87,0,null,null,null,null,null,null,null,null,null,null,null,null,null,null,null,null,null,null,null,null,null,null,null,null,null,null,null,null,null,null,null,null,null,null,null,null,null,null,null,null,null,null,null,null,null,null,null,null,null,null,null,null,null,null,null,10,6,-2,-2,null,null,null,null,null,null,null,null,null,null,null,null,null,null,null,null,null,5.0999999999999996,0.9,2,-2]
[88,0,null,null,null,null,null,null,null,null,null,null,null,null,null,null,null,null,null,null,null,null,null,null,null,null,null,null,null,null,null,null,null,null,null,null,null,null,null,null,null,null,null,null,null,null,null,null,null,null,null,null,null,null,null,null,null,11,6,-1,-1,null,null,null,null,null,null,null,null,null,null,null,null,null,null,null,null,null,4,1,2.1,-0.9]
[89,0,null,null,null,null,null,null,null,null,null,null,null,null,null,null,null,null,null,null,null,null,null,null,null,null,null,null,null,null,null,null,null,null,null,null,null,null,null,null,null,null,null,null,null,null,null,null,null,null,null,null,null,null,null,null,null,12,5.9,9.9999999999999978E-2,9.9999999999999978E-2,null,null,null,null,null,null,null,null,null,null,null,null,null,null,null,null,null,2.9,1.1000000000000001,2.9,-0.1]
[90,0,null,null,null,null,null,null,null,null,null,null,null,null,null,null,null,null,null,null,null,null,null,null,null,null,null,null,null,null,null,null,null,null,null,null,null,null,null,null,null,null,null,null,null,null,null,null,null,null,null,null,null,null,null,null,null,13,5.0999999999999996,0.9,0.9,null,null,null,null,{"$f":"$BH91","v":0.9},null,null,null,null,null,null,null,null,null,null,null,null,2.1,1.9,4,0]
[91,0,null,null,null,null,null,null,null,null,null,null,null,null,null,null,null,null,null,null,null,null,null,null,null,null,null,null,null,null,null,null,null,null,null,null,null,null,null,null,null,null,null,null,null,null,null,null,null,null,null,null,null,null,null,null,null,14,4,1,1,null,null,{"$f":"$BH92","v":1},null,{"$f":"$BH92","v":1},null,null,null,null,null,null,null,null,null,null,null,null,2,3,5.0999999999999996,0.1]
[92,0,null,null,null,null,null,null,null,null,null,null,null,null,null,null,null,null,null,null,null,null,null,null,null,null,null,null,null,null,null,null,null,null,null,null,null,null,null,null,null,null,null,null,null,null,null,null,null,null,null,null,null,null,null,null,null,15,2.9,1.1000000000000001,1.1000000000000001,null,null,{"$f":"$BH93","v":1.1000000000000001},null,{"$f":"$BH93","v":1.1000000000000001},null,null,null,null,null,null,null,null,null,null,null,null,2,4,5.7,1]
[93,0,null,null,null,null,null,null,null,null,null,null,null,null,null,null,null,null,null,null,null,null,null,null,null,null,null,null,null,null,null,null,null,null,null,null,null,null,null,null,null,null,null,null,null,null,null,null,null,null,null,null,null,null,null,null,null,16,2.1,1.9,1.9,null,null,{"$f":"$BH94","v":1.9},null,{"$f":"$BH94","v":1.9},null,null,null,null,null,null,null,null,null,null,null,null,2.9,4.9000000000000004,5.0999999999999996,1.9]
[94,0,null,null,null,null,null,null,null,null,null,null,null,null,null,null,null,null,null,null,null,null,null,null,null,null,null,null,null,null,null,null,null,null,null,null,null,null,null,null,null,null,null,null,null,null,null,null,null,null,null,null,null,null,null,null,null,17,2,3,3,null,null,{"$f":"$BH95","v":3},null,{"$f":"$BH95","v":3},null,null,null,null,null,null,null,null,null,null,null,null,4,5,4,2]
[95,0,null,null,null,null,null,null,null,null,null,null,null,null,null,null,null,null,null,null,null,null,null,null,null,null,null,null,null,null,null,null,null,null,null,null,null,null,null,null,null,null,null,null,null,null,null,null,null,null,null,null,null,null,null,null,null,18,2,4,null,null,null,null,null,null,null,null,null,null,null,null,null,null,null,null,null,null,5,5,2.9,2.1]
[96,0,null,null,null,null,null,null,null,null,null,null,null,null,null,null,null,null,null,null,null,null,null,null,null,null,null,null,null,null,null,null,null,null,null,null,null,null,null,null,null,null,null,null,null,null,null,null,null,null,null,null,null,null,null,null,null,19,2.1,5.0999999999999996,null,null,null,null,null,null,null,null,null,null,null,null,null,null,null,null,null,null,6,5,2.1,2.9]
[97,0,null,null,null,null,null,null,null,null,null,null,null,null,null,null,null,null,null,null,null,null,null,null,null,null,null,null,null,null,null,null,null,null,null,null,null,null,null,null,null,null,null,null,null,null,null,null,null,null,null,null,null,null,null,null,null,20,2.9,5.9,null,null,null,null,null,null,null,null,null,null,null,null,null,null,null,null,null,null,null,null,2,4]
[98,0,null,null,null,null,null,null,null,null,null,null,null,null,null,null,null,null,null,null,null,null,null,null,null,null,null,null,null,null,null,null,null,null,null,null,null,null,null,null,null,null,null,null,null,null,null,null,null,null,null,null,null,null,null,null,null,21,4,6,null,null,null,null,null,null,null,null,null,null,null,null,null,null,null,null,null,null,null,null,2,5]
[99,0]
[100,0]
[101,0]
[102,0]
[103,0]
[104,0]
[105,0]
[106,0]
[107,0]
[108,0]
[109,0]
[110,0]
[111,0]
[112,0]
[113,0]
[114,0]
[115,0]
[116,0]
[117,0]
[118,0]
[119,0]
[120,0]
[121,0]
[122,0]
[123,0]
[124,0]
[125,0]
[126,0]
[127,0]
[128,0]
[129,0]
[130,0]
[131,0]
[132,0]
[133,0]
[134,0]
[135,0]
[136,0]
[137,0]
[138,0]
[139,0]
[140,0]
[141,0]
[142,0]
[143,0]
[144,0]
[145,0]
[146,0]
[147,0]
[148,0]
[149,0]
[150,0]
[151,0]
[152,0]
[153,0]
[154,0]
[155,0]
[156,0]
[157,0]
[158,0]
[159,0]
[160,0]
[161,0]
[162,0]
[163,0]
[164,0]
[165,0]
[166,0]
[167,0]
[168,0]
[169,0]
[170,0]
[171,0]
[172,0]
[173,0]
[174,0]
[175,0]
[176,0]
[177,0]
[178,0]
[179,0]
[180,0]
[181,0]
[182,0]
[183,0]
[184,0]
[185,0]
[186,0]
[187,0]
[188,0]
[189,0]
[190,0]
[191,0]
[192,0]
[193,0]
[194,0]
[195,0]
[196,0]
[197,0]
[198,0]
[199,0]
[200,0]
[201,0]
[202,0]
[203,0]
[204,0]
[205,0]
[206,0]
[207,0]
[208,0]
[209,0]
[210,0]
[211,0]
[212,0]
[213,0]
[214,0]
[215,0]
[216,0]
[217,0]
[218,0]
[219,0]
[220,0]
[221,0]
[222,0]
[223,0]
[224,0]
[225,0]
[226,0]
[227,0]
[228,0]
[229,0]
[230,0]
[231,0]
[232,0]
[233,0]
[234,0]
[235,0]
[236,0]
[237,0]
[238,0]
[239,0]
[240,0]
[241,0]
[242,0]
[243,0]
[244,0]
[245,0]
[246,0]
[247,0]
[248,0]
[249,0]
[250,0]
[251,0]
[252,0]
[253,0]
[254,0]
[255,0]
[256,0]
[257,0]
[258,0]
[259,0]
[260,0]
[261,0]
[262,0]
[263,0]
[264,0]
[265,0]
[266,0]
[267,0]
[268,0]
[269,0]
[270,0]
[271,0]
[272,0]
[273,0]
[274,0]
[275,0]
[276,0]
[277,0]
[278,0]
[279,0]
[280,0]
[281,0]
[282,0]
[283,0]
[284,0]
[285,0]
[286,0]
[287,0]
[288,0]
[289,0]
[290,0]
[291,0]
[292,0]
[293,0]
[294,0]
[295,0]
[296,0]
[297,0]
[298,0]
[298,0]
[298,0]
[298,0]

{"sheet":"BLK","index":2,"n_rows":0,"n_cols":0,"rows_kept":0,"cut":false,"hidden":true,"merged":[]}

{"sheet":"MetaData","index":3,"n_rows":78,"n_cols":9,"rows_kept":78,"cut":false,"hidden":true,"merged":[]}
["データ背景情報","*印は必須項目、マクロANCreator実行時に入力がチェックされます。MetaDataは今後の分析の基礎になります。なるべく詳しく記入のこと。"]
[]
["動物","個体ID*","種名*","性別*","体重（kg）","体長（cm）","体高（cm）","年齢","耳標など"]
[]
[null,"追加項目","学名"]
[]
[]
["調査実施者","代表者氏名*","組織名（省略なしで）*"]
[]
[null,"その他、氏名"]
[]
["捕獲","場所（地名）","年月日 (yyyy/mm/dd)","時分 (hh:mm)","緯度（小数5桁まで）","経度（小数5桁まで）","方法*","誘引餌"]
[]
[null,"追加項目"]
[]
[]
["放逐","場所（地名）*","年月日* (yyyy/mm/dd)","時分* (hh:mm)","緯度（小数5桁まで）","経度（小数5桁まで）"]
[]
[]
["首輪回収","場所（地名）","年月日 (yyyy/mm/dd)","時分 (hh:mm)","緯度（小数5桁まで）","経度（小数5桁まで）","経緯・状況"]
[]
[]
["機器情報","メーカー名*","機器型式*","ソフトウェアバージョン","重さ（g)","首輪ID","首輪色","周波数"]
[]
[null,"追加項目"]
[]
[]
["測位設定","基本周期（分）","第２周期（分）","第３周期（分）","測位努力時間（秒）","0時からのずれ",null,"GPS記録日時","記録と現地との時差"]
[]
[null,"追加項目"]
["　"]
[]
["データ概要","開始日時","終了日時","期間（日）","全レコード数","除外レコード数","日時欠損・無効","標高欠損","経緯度欠損・無効"]
[]
["有効データ","開始日時","終了日時","期間（日）","分析用レコード数",null,"測定の重複・大きな遅れ","標高：異様なな動き","位置：異様な動き"]
[]
[]
["備考"]
[]
["ENG"]
["MetaData","Note： Items marked with asterisk (*) need to be fulfilled. The metadata searves as the basis for future analysises. Details are required."]
[]
["Animal","Individual ID*","Species Name*","Sex*","Body Weight （kg）","Body Length （cm）","Body Height （cm）","Age","Ear Tags or others"]
[]
[null,"Additional","Scientific Name"]
[]
[]
["Personnel","Representative *","Institute * (Do not abridge. Enter the full official name, please.)"]
[]
[null,"Other Staff"]
[]
["Capture","Place Name","yyyy/mm/dd","hh:mm","Latitude (5 decimals)","Longitude (5 decimals)","Method*","Baits"]
[]
[null,"Additional"]
[]
[]
["Release","Place Name *","yyyy/mm/dd *","hh:mm *","Latitude (5 decimals)","Longitude (5 decimals)"]
[]
[]
["Collar Retrieval","Place Name","yyyy/mm/dd ","hh:mm","Latitude (5 decimals)","Longitude (5 decimals)","Situation"]
[]
[]
["Device Info.","Manufacturer *","Device Name *","Firmware Version","Weight （g)","Collar ID","Collar Color","Signal Frequency"]
[]
[null,"Additional"]
[]
[]
["Time Settings","Primary (min) *","Secondary (min)","Tertiary (min)","Effort Time (sec)","Phase Offset",null,"GPS-Log Time","Time Gap "]
[]
[null,"Additional"]
["　"]
[]
["Data Outline","Start Date/Time","End Date/Time","Duration","#Given Records","#Removed Records","#Time Missing/Improper","#Height Missing","#LatLon Missing/Improper"]
[]
["Valid Records","Start Date/Time","End Date/Time","Duration","#Records Left for Analysis",null,"#Extra & Large Delay","#Height Erratic Move","#LatLon Erratic Move"]
[" "]
[]
["Memo"]

{"sheet":"RawData","index":4,"n_rows":7,"n_cols":6,"rows_kept":7,"cut":false,"hidden":true,"merged":[[1,2,1,3],[5,2,5,3]]}
[null,"DT","LAT","LON","HGT","DOP"]
[null,"チェック","チェック",null,"チェック","保管"]
["ID","測位日時","緯度","経度","標高"]
["ENG"]
[null,"DT","LAT","LON","HGT","DOP"]
[null,"Check","Check",null,"Check","Cache"]
["ID","Date/Time","Latitude","Longitude","Height"]

{"sheet":"TimeCheck","index":5,"n_rows":13,"n_cols":39,"rows_kept":13,"cut":false,"hidden":true,"merged":[[11,35,11,36],[11,37,11,38],[4,35,4,36],[4,37,4,38],[7,7,7,9],[7,11,7,13],[8,4,8,5],[8,7,8,9],[8,11,8,13],[8,34,9,34],[0,7,0,9],[0,11,0,13],[1,4,1,5],[1,7,1,9],[1,11,1,13],[1,34,2,34]]}
[null,"DTL","DLY","DT","ATI","EIP",null,"FRQ",null,null,null,"SCH",null,null,null,null,"検討内容","N/A","認識不能","時刻逆転","定刻前","重複","周期外",null,"原データ数",null,null,"探索周期",null,null,"日時有効",null,null,null,"しきい値の第一候補値選択 とmaxGAP 計算停止の条件"]
[null,"GPS記録","遅れ","定刻","間隔",null,null,"推定測位周期",null,null,null,"推定測位周期の変化",null,null,null,null,"件数",null,null,null,null,null,null,null,"日時無効",null,{"$f":"Z2/Z1","v":{"$error":"#DIV/0!"}},"測位の遅れ","分秒","秒","遅れ除外",null,{"$f":"AF2/AF1","v":{"$error":"#DIV/0!"}},null,"測位遅れ\nmaxGAP","候補値",1.08,"指定値を上回るmaxGA系列の中で、最小のmaxGAPをしきい値の第一候補とします。"]
["ID","測位日時","[分秒]","遅れ除去","実\n[時分]","推定\n周期\n[分]",null,"周期\n[時分]","頻度","期間\n上位",null," 切替日時","周期\n[分]","０時\nずれ\n[分]",null,"処理","そのまま\n修正\n無効化",null,null,null,null,null,null,null,"日時有効",null,{"$f":"Z3/Z1","v":{"$error":"#DIV/0!"}},"定刻前最大\n定刻後最小\n定刻後最大",null,null,"残",null,{"$f":"AF3/AF1","v":{"$error":"#DIV/0!"}},null,null,"処理停止",1.05,"maxGAPの計算は指定値を下回るまで行われます。"]
[1]
[2,null,null,null,null,null,null,null,null,null,null,null,null,null,null,null,null,null,null,null,null,null,null,null,null,null,null,null,null,null,null,null,null,null,"測位の遅れ","しきい値",null,"除外"]
[3,null,null,null,null,null,null,null,null,null,null,null,null,null,null,null,null,null,null,null,null,null,null,null,null,null,null,null,null,null,null,null,null,null,"maxGAP","分秒","秒","累積数","累積率"]
["ENG"]
[null,"DTL","DLY","DT","ATI","EIP",null,"FRQ",null,null,null,"SCH",null,null,null,null,"Checked","N/A","Ill-format","T.Reversed","Before sched.","Extra","Irregular",null,"Original",null,null,"Probe Cycle",null,null,"D/T Valids",null,null,null,"Conditions for selecting the first threshold candidate and stopping the calculation of maxGAP"]
[null,"GPS-log Time","Delay ","Scheduled Time","Time Interval",null,null,"Inferred Sampling Intervals",null,null,null,"Inferred Sampling Schedule",null,null,null,null,"#Cases",null,null,null,null,null,null,null,"Invalids",null,{"$f":"Z9/Z8","v":{"$error":"#DIV/0!"}},"Delay","[mm:ss]","[ss]","Delay ",null,{"$f":"AF9/AF8","v":{"$error":"#DIV/0!"}},null,"maxGAP  \nfor Delay","Candidate",1.08,"Of maxGAP series larger than the set value, the minimum one is presented as an initial candidate."]
["ID","Date/Time","Delay\n[mm:ss]","Delay Cut-Off","Actual \n[hhmm]","Infer.\n[mm]",null,"Interval \n[hhmm]","\n#Cases\n","Ranks",null,"Switchover\nTime","Interval \n[min]","Phase Offset \n[min]",null,"Handling","Intact\nCorrected \nInvalidated",null,null,null,null,null,null,null,"Valids",null,{"$f":"Z10/Z8","v":{"$error":"#DIV/0!"}},"Max Negat.\nMinimum\nMaximum",null,null,"Remainder",null,{"$f":"AF10/AF8","v":{"$error":"#DIV/0!"}},null,null,"Stops when",1.05,"The calculation of maxGAP is conducted until its value  falls below the set value."]
[1]
[2,null,null,null,null,null,null,null,null,null,null,null,null,null,null,null,null,null,null,null,null,null,null,null,null,null,null,null,null,null,null,null,null,null,"Delay","Threshold",null,"Removal (Cumulative)"]
[3,null,null,null,null,null,null,null,null,null,null,null,null,null,null,null,null,null,null,null,null,null,null,null,null,null,null,null,null,null,null,null,null,null,"maxGAP","(mm:ss)"," (seconds)","Removal","Rate"]

{"sheet":"HeightCheck","index":6,"n_rows":33,"n_cols":35,"rows_kept":33,"cut":false,"hidden":true,"merged":[[4,10,4,14],[4,15,4,16],[4,24,4,25],[4,27,4,28],[4,29,4,30],[11,10,11,14],[11,15,11,16],[11,24,11,25],[11,27,11,28],[11,29,11,30]]}
[null,"DT","HGT0","HGT1","HGT2","HGT3",null,"TimeCheck後",null,"日時有効",null,null,"標高あり",null,null,"除外",null,null,null,null,null,null,null,null,"処理の停止条件と除外候補となる最大グループサイズ"]
[null,null,null,"除外後",null,"除外",null,null,null,"標高欠損",null,{"$f":"K2/K1","v":{"$error":"#DIV/0!"}},"除外",null,{"$f":"N2/N1","v":{"$error":"#DIV/0!"}},"上頂点",null,{"$f":"Q2/Q1","v":{"$error":"#DIV/0!"}},null,null,null,null,null,null,"maxGAP",1.03,"maxGAPが指定値を下回ると、処理を自動終了します。",null,null,null,null,null,null,"各段階のmaxGAP系列"]
["ID","測位日時","標高","標高","標高差","標高",null,null,null,"残",null,{"$f":"K3/K1","v":{"$error":"#DIV/0!"}},"残",null,{"$f":"N3/N1","v":{"$error":"#DIV/0!"}},"下頂点",null,{"$f":"Q3/Q1","v":{"$error":"#DIV/0!"}},null,null,null,null,null,null,"グループサイズ",4,"除外対象とするグループサイズの上限を指定します。",null,null,null,null,null,"maxGAP","しきい値","分割数"]
[]
[null,null,null,null,null,null,null,null,null,"情報領域","除外候補",null,null,null,null,"ラベル位置",null,null,null,null,null,null,null,null,"標高差往復積の平方根",null,"除外候補","除外候補",null,"除外"]
[null,null,null,null,null,null,null,null,null,"転写元","グループNo.","データ行","データ ID","候補数","往復積","日時","標高",null,null,null,null,null,null,null,"maxGAP","しきい値","グループ数","上頂点数","下頂点数","上頂点数","下頂点数"]
["ENG"]
[null,"DT","HGT0","HGT1","HGT2","HGT3",null,"After TimeCheck",null,"D/T Valid",null,null,"Height",null,null,"Removed",null,null,null,null,null,null,null,null,"Conditions for stopping the process and the maximum group size for a removal candidate."]
[null,null,null,"After","Height","Height",null,null,null,"No Height",null,{"$f":"K9/K8","v":{"$error":"#DIV/0!"}},"Removed",null,{"$f":"N9/N8","v":{"$error":"#DIV/0!"}},"Upward",null,{"$f":"Q9/Q8","v":{"$error":"#DIV/0!"}},null,null,null,null,null,null,"maxGAP  ",1.03,"The process stops when maxGAP falls below the set value.",null,null,null,null,null,null,"maxGAP series at each phase"]
["ID","Date/Time","Height","Removal","Difference","Removed",null,null,null,"Remainder",null,{"$f":"K10/K8","v":{"$error":"#DIV/0!"}},"Remainder",null,{"$f":"N10/N8","v":{"$error":"#DIV/0!"}},"Downward",null,{"$f":"Q10/Q8","v":{"$error":"#DIV/0!"}},null,null,null,null,null,null," Group Size",4,"Groups up to the set size become removal candidates.",null,null,null,null,null,"maxGAP","Threshould","#Groups"]
[1]
[2,null,null,null,null,null,null,null,null,"For Info.","Removal Candidates",null,null,null,null,"Label Position",null,null,null,null,null,null,null,null,"Height Dif. Products",null,"Candidate","Candidates",null,"Removed"]
[3,null,null,null,null,null,null,null,null,"Region ","Group No.","Data Row","Data ID","Group Size","Scores","Date/Time","Height",null,null,null,null,null,null,null,"maxGAP","Threshold","#Groups","Up. Peaks","Down. pks","Up. Peaks","Down. pks"]
[]
[]
[]
[]
[]
[]
[]
[]
[]
[]
[]
[null,null,null,null,null,null,null,null,null,null,null,null,null,null,null,null,null,null,null,null,null,null,null,null,null,null,null,null,"J=1","J=2","J=3"]
[null,null,null,null,null,null,null,null,null,null,null,null,null,null,null,null,null,null,null,null,null,null,null,null,"remains","data No","HGT","difH","SCRs(i, 1)","SCRs(i, 2)","SCRs(i, 3)"]
[]
[null,null,null,null,null,null,null,null,null,null,null,null,null,null,null,null,null,null,null,null,null,null,null,null,5,"T2NRs-5"]
[null,null,null,null,null,null,null,null,null,null,null,null,null,null,null,null,null,null,null,null,null,null,null,null,4,"T2NRs-4"]
[null,null,null,null,null,null,null,null,null,null,null,null,null,null,null,null,null,null,null,null,null,null,null,null,3,"T2NRs-3"]
[null,null,null,null,null,null,null,null,null,null,null,null,null,null,null,null,null,null,null,null,null,null,null,null,2,"T2NRs-2"]
[null,null,null,null,null,null,null,null,null,null,null,null,null,null,null,null,null,null,null,null,null,null,null,null,1,"T2NRs-1"]
[null,null,null,null,null,null,null,null,null,null,null,null,null,null,null,null,null,null,null,null,null,null,null,null,0,"T2NRs"]

{"sheet":"RemoteCheck","index":7,"n_rows":22,"n_cols":38,"rows_kept":22,"cut":false,"hidden":true,"merged":[[8,9,8,10],[8,27,8,28],[9,27,9,28],[11,27,11,28],[11,30,11,31],[11,32,11,33],[1,9,1,10],[1,27,1,28],[2,27,2,28],[4,27,4,28],[4,30,4,31],[4,32,4,33]]}
[null,"DT","LAT","LON","X","Y","DIS","GRP",null,null,"分離集団と除外候補",null,null,"TimeCheck後",null,"日時有効",null,null,"経緯度あり",null,null,"有効経緯度",null,null,null,null,null,"マクロ処理の停止条件"]
[null,null,null,null,null,null,"隣接","グループ",null,"集団サイズGAP",null,"しきい値",null,null,null,"経緯度欠損",null,{"$f":"Q2/Q1","v":{"$error":"#DIV/0!"}},"角度範囲外",null,{"$f":"T2/T1","v":{"$error":"#DIV/0!"}},"除外",null,{"$f":"W2/W1","v":{"$error":"#DIV/0!"}},null,null,null,"距離のmaxGAP",null,1.03,"最大GAPが指定値を下回ると、処理を自動終了します。",null,null,null,null,null,"各段階のmaxGAP系列"]
["ID","測位日時","緯度","経度","X座標","Y座標","距離","番号",null,"maxGAP",null,null,null,null,null,"残り",null,{"$f":"Q3/Q1","v":{"$error":"#DIV/0!"}},"残り",null,{"$f":"T3/T1","v":{"$error":"#DIV/0!"}},"残り",null,{"$f":"W3/W1","v":{"$error":"#DIV/0!"}},null,null,null,"分離グループ数",null,50,"グループ数が指定値を上回ると、処理を自動終了します。",null,null,null,null,"maxGAP","しきい値","分割数"]
[1]
[2,null,null,null,null,null,null,null,null,"集団ID","サイズ","除外?",null,"X","Y","LAT","LON","Date/Time",null,null,null,null,null,null,null,null,null,"隣接測位点間距離",null,"分離","除外候補",null,"除外"]
[3,null,null,null,null,null,null,null,null,null,null,null,null,null,null,null,null,null,null,null,null,null,null,null,null,null,null,"maxGAP","しきい値","グループ数","グループ数","点数","グループ数","点数"]
["ENG"]
[null,"DT","LAT","LON","X","Y","DIS","GRP",null,null,"Remote Groups & Removal",null,null,"After TimeCheck",null,"D/T Valid",null,null,"#Lot/Lons",null,null,"Valid L/Ls",null,null,null,null,null,"Conditions for stopping the process."]
[null,null,null,null,null,null,"Neighb.","Group",null,"GAP in Group Size",null,"Threshold",null,null,null,"No Lat/Lons",null,{"$f":"Q9/Q8","v":{"$error":"#DIV/0!"}},"Out of range",null,{"$f":"T9/T8","v":{"$error":"#DIV/0!"}},"Removed",null,{"$f":"W9/W8","v":{"$error":"#DIV/0!"}},null,null,null,"maxGAP in distance",null,1.03,"The process stops when maxGAP falls below the set value.",null,null,null,null,null,"maxGAP series at each phase"]
["ID","Date/Time","Latit.","Longit.","X coord.","Y coord.","Distance","No.",null,"maxGAP",null,null,null,null,null,"Remainder",null,{"$f":"Q10/Q8","v":{"$error":"#DIV/0!"}},"Remainder",null,{"$f":"T10/T8","v":{"$error":"#DIV/0!"}},"Remainder",null,{"$f":"W10/W8","v":{"$error":"#DIV/0!"}},null,null,null,"No. of Separated Groups",null,50,"The process stops when #groups exceeds the set value.",null,null,null,null,"maxGAP","Threshold","#Groups"]
[1]
[2,null,null,null,null,null,null,null,null,"Group ID","Size","Remove?",null,"X","Y","LAT","LON","Date/Time",null,null,null,null,null,null,null,null,null,"Distance",null,"Separaeted","Removal Candidates",null,"Removed"]
[3,null,null,null,null,null,null,null,null,null,null,null,null,null,null,null,null,null,null,null,null,null,null,null,null,null,null,"maxGAP","Threshold","#Groups","#Groups","#Points","#Groups","#Points"]
[]
[]
[]
[]
[]
[]
[]
[]
[null,null,null,null,null,null,null,null,null,null,null,null,null,null,null,null,null,null,null,null,null,null,null,null,null,null,null,"距離nitiji のmaxGAP"]

{"sheet":"LeapCheck","index":8,"n_rows":13,"n_cols":35,"rows_kept":13,"cut":false,"hidden":true,"merged":[[11,33,11,34]]}
[null,"DT","LAT","LON","X","Y","RMV","Yvals",null,null,null,30,500,1.5,2,2,null,null,"RemoteCheck後",null,"有効",null,null,null,null,null,null,null,null,null,null,null,"飛躍度の計算方法とパラメーター"]
[null,null,null,null,null,null,null,null,null,null,null,60,1000,2,3,3,null,null,null,null,"除外",null,{"$f":"V2/V1","v":{"$error":"#DIV/0!"}},null,null,null,null,null,null,null,null,null,"角度の影響",null,"角度短辺長法による飛躍度計算における角度の影響の大きさを指定します。1-10の間で調整できます。0を指定すると、中点-重心乖離法が使われます。"]
["ID","測位日時","緯度","経度","X座標","Y座標","除外","Y値",null,null,null,90,2000,3,4,4,null,null,null,null,"残",null,{"$f":"V3/V1","v":{"$error":"#DIV/0!"}},null,null,null,null,null,null,null,null,null,"前後データ幅",null,"セルAI1で0を指定した時、中点-重心乖離法による飛躍度計算に必要な前後範囲（データ点数）を指定します｡3未満の指定は3に自動修正されます。"]
[]
[null,null,null,null,null,null,null,null,null,"No.","飛躍度","角度","短辺","長短比","前期間","後期間",null,null,"Row","X","Y",null,null,null,null,null,null,null,null,null,null,null,"飛躍度","除外"]
[null,null,null,null,null,null,null,null,null,null,null,null,null,null,null,null,null,null,null,null,null,null,null,null,null,null,null,null,null,null,null,null,"しきい値","候補","実行"]
["ENG"]
[null,"DT","LAT","LON","X","Y","RMV","Yvals",null,null,null,30,500,1.5,2,2,null,null,"After RemoteCheck",null,"Valid",null,null,null,null,null,null,null,null,null,null,null,"Calculation method for the leap score and its parameter"]
[null,null,null,null,null,null,null,null,null,null,null,60,1000,2,3,3,null,null,null,null,"Removed",null,{"$f":"V9/V8","v":{"$error":"#DIV/0!"}},null,null,null,null,null,null,null,null,null,"Ang. Effect",3,"The effect of angles on the leap score in the angle shoter-side-length method. Set a number between 1 and 10. Set 0 to use the midpoint-centroid deviation method."]
["ID","Date/Time","Latit.","Longit.","X-coord.","Y-coord.","Removals","Y value",null,null,null,90,2000,3,4,4,null,null,null,null,"Remainder",null,{"$f":"V10/V8","v":{"$error":"#DIV/0!"}},null,null,null,null,null,null,null,null,null,"#Neighbuors",8,"Only when cell AI1 is 0, the number is eefective (used for calculating the leap score in the midpoint-centrod deviation method). A less-than-3 value is automatically changed to 3. "]
[]
[null,null,null,null,null,null,null,null,null,"No.","Leap","Angle","Short Side","L-S.Ratio","Period1","Period2",null,null,"Row","X","Y",null,null,null,null,null,null,null,null,null,null,null,"Leap Score","Removals"]
[null,null,null,null,null,null,null,null,null,null,null,null,null,null,null,null,null,null,null,null,null,null,null,null,null,null,null,null,null,null,null,null,"Threshold","Candidates","Removed"]

{"sheet":"CheckOut","index":9,"n_rows":55,"n_cols":47,"rows_kept":55,"cut":false,"hidden":true,"merged":[[32,44,32,46],[33,36,33,37],[29,38,29,40],[29,41,29,43],[30,38,30,40],[32,36,32,37],[32,38,32,40],[32,41,32,43],[4,44,4,46],[5,36,5,37],[28,1,28,4],[28,5,28,7],[28,8,28,10],[28,19,28,21],[28,22,28,24],[28,25,28,27],[28,38,28,40],[0,38,0,40],[1,38,1,40],[1,41,1,43],[2,38,2,40],[4,36,4,37],[4,38,4,40],[4,41,4,43],[0,1,0,4],[0,5,0,7],[0,8,0,10],[0,19,0,21],[0,22,0,24],[0,25,0,27]]}
["元データ","日時",null,null,null,"標高",null,null,"経緯度",null,null,null,"除外レコード",null,null,null,null,null,null,"日時",null,null,"標高",null,null,"経緯度",null,null,null,"除外後のレコード",null,null,null,null,null,null,null,"Time",null,null,null,null,"CheckOut"]
[null,null,null,null,null,null,null,null,null,null,null,null,null,{"$f":"M2/$A2","v":{"$error":"#DIV/0!"}},null,null,null,null,null,null,null,null,null,null,null,null,null,null,null,null,{"$f":"AD2/$A2","v":{"$error":"#DIV/0!"}},null,null,null,null,null,"Check","Height"]
["ID.","内訳","欠損\n無効\n周期外","重複","遅れ","欠損","上頂点","下頂点","欠損\n無効","孤立","飛躍",null,"No.","ID.","日時","緯度","経度","標高",null,"欠損\n無効\n周期外","重複","遅れ","欠損","上頂点","下頂点","欠損\n無効","孤立","飛躍",null,"No.","ID.","日時","緯度","経度","標高",null,null,"Remote\nLeap"]
[null,null,null,null,null,null,null,null,null,null,null,null,null,null,null,null,null,null,null,null,null,null,null,null,null,null,null,null,null,1]
[null,null,null,null,null,null,null,null,null,null,null,null,null,null,null,null,null,null,null,null,null,null,null,null,null,null,null,null,null,2,null,null,null,null,null,null,"除外要因の",null,"日時",null,null,"標高",null,null,"経緯度"]
[null,null,null,null,null,null,null,null,null,null,null,null,null,null,null,null,null,null,null,null,null,null,null,null,null,null,null,null,null,3,null,null,null,null,null,null,"重複チェック",null,"欠損","重複","遅れ","欠損","上頂点","下頂点","欠損","孤立","飛躍"]
[null,null,null,null,null,null,null,null,null,null,null,null,null,null,null,null,null,null,null,null,null,null,null,null,null,null,null,null,null,4,null,null,null,null,null,null,null,"欠損"]
[null,null,null,null,null,null,null,null,null,null,null,null,null,null,null,null,null,null,null,null,null,null,null,null,null,null,null,null,null,5,null,null,null,null,null,null,"日時","重複"]
[null,null,null,null,null,null,null,null,null,null,null,null,null,null,null,null,null,null,null,null,null,null,null,null,null,null,null,null,null,6,null,null,null,null,null,null,null,"遅れ"]
[null,null,null,null,null,null,null,null,null,null,null,null,null,null,null,null,null,null,null,null,null,null,null,null,null,null,null,null,null,7,null,null,null,null,null,null,null,"欠損"]
[null,null,null,null,null,null,null,null,null,null,null,null,null,null,null,null,null,null,null,null,null,null,null,null,null,null,null,null,null,8,null,null,null,null,null,null,"標高","上頂点"]
[null,null,null,null,null,null,null,null,null,null,null,null,null,null,null,null,null,null,null,null,null,null,null,null,null,null,null,null,null,9,null,null,null,null,null,null,null,"下頂点"]
[null,null,null,null,null,null,null,null,null,null,null,null,null,null,null,null,null,null,null,null,null,null,null,null,null,null,null,null,null,10,null,null,null,null,null,null,null,"欠損"]
[null,null,null,null,null,null,null,null,null,null,null,null,null,null,null,null,null,null,null,null,null,null,null,null,null,null,null,null,null,11,null,null,null,null,null,null,"経緯度","孤立"]
[null,null,null,null,null,null,null,null,null,null,null,null,null,null,null,null,null,null,null,null,null,null,null,null,null,null,null,null,null,12,null,null,null,null,null,null,null,"飛躍"]
[null,null,null,null,null,null,null,null,null,null,null,null,null,null,null,null,null,null,null,null,null,null,null,null,null,null,null,null,null,13]
[null,null,null,null,null,null,null,null,null,null,null,null,null,null,null,null,null,null,null,null,null,null,null,null,null,null,null,null,null,14,null,null,null,null,null,null,null,"除外数","日時","標高","経緯度","単独","2重","3重"]
[null,null,null,null,null,null,null,null,null,null,null,null,null,null,null,null,null,null,null,null,null,null,null,null,null,null,null,null,null,15,null,null,null,null,null,null,null,"日時"]
[null,null,null,null,null,null,null,null,null,null,null,null,null,null,null,null,null,null,null,null,null,null,null,null,null,null,null,null,null,16,null,null,null,null,null,null,null,"標高"]
[null,null,null,null,null,null,null,null,null,null,null,null,null,null,null,null,null,null,null,null,null,null,null,null,null,null,null,null,null,17,null,null,null,null,null,null,null,"経緯度"]
[null,null,null,null,null,null,null,null,null,null,null,null,null,null,null,null,null,null,null,null,null,null,null,null,null,null,null,null,null,18,null,null,null,null,null,null,null,"欠損/無効",null,null,"除外計"]
[null,null,null,null,null,null,null,null,null,null,null,null,null,null,null,null,null,null,null,null,null,null,null,null,null,null,null,null,null,19]
[null,null,null,null,null,null,null,null,null,null,null,null,null,null,null,null,null,null,null,null,null,null,null,null,null,null,null,null,null,20,null,null,null,null,null,null,null,"除外数","日時","標高","経緯度","単独","2重","3重"]
[null,null,null,null,null,null,null,null,null,null,null,null,null,null,null,null,null,null,null,null,null,null,null,null,null,null,null,null,null,21,null,null,null,null,null,null,null,"日時"]
[null,null,null,null,null,null,null,null,null,null,null,null,null,null,null,null,null,null,null,null,null,null,null,null,null,null,null,null,null,22,null,null,null,null,null,null,null,"標高"]
[null,null,null,null,null,null,null,null,null,null,null,null,null,null,null,null,null,null,null,null,null,null,null,null,null,null,null,null,null,23,null,null,null,null,null,null,null,"経緯度"]
[null,null,null,null,null,null,null,null,null,null,null,null,null,null,null,null,null,null,null,null,null,null,null,null,null,null,null,null,null,24,null,null,null,null,null,null,null,"大きな遅れ／異質な動き",null,null,"除外計"]
["ENG"]
["Original","Time",null,null,null,"Height",null,null,"Lat/Lon",null,null,null,"Removed Records",null,null,null,null,null,null,"Time",null,null,"Height",null,null,"Lat/Lon",null,null,null,"Records after Removal",null,null,null,null,null,null,null,"Time",null,null,null,null,"CheckOut"]
[null,null,null,null,null,null,null,null,null,null,null,null,null,{"$f":"M30/$A30","v":{"$error":"#DIV/0!"}},null,null,null,null,null,null,null,null,null,null,null,null,null,null,null,null,{"$f":"AD30/$A30","v":{"$error":"#DIV/0!"}},null,null,null,null,null,"Check","Height"]
["ID.","CHK","N/A\nInvalid\nIrreg.","Extra","Delay","N/A","Up","Down","N/A\nInvalid","Remote","Leap",null,"No.","ID.","Date/Time","Lat","Lon","Height",null,"N/A\nInvalid\nIrreg.","Extra","Delay","N/A","Up","Down","N/A\nInvalid","Remote","Leap",null,"No.","ID.","Date/Time","Lat","Lon","Height",null,null,"Remote\nLeap"]
[null,null,null,null,null,null,null,null,null,null,null,null,null,null,null,null,null,null,null,null,null,null,null,null,null,null,null,null,null,1]
[null,null,null,null,null,null,null,null,null,null,null,null,null,null,null,null,null,null,null,null,null,null,null,null,null,null,null,null,null,2,null,null,null,null,null,null,"Cross Check in",null,"Time",null,null,"Height",null,null,"Lat/Lon"]
[null,null,null,null,null,null,null,null,null,null,null,null,null,null,null,null,null,null,null,null,null,null,null,null,null,null,null,null,null,3,null,null,null,null,null,null,"Removal Factors",null,"Missing","Double","Delay","xMissing","Up","Down","Missing","Remote","Leap"]
[null,null,null,null,null,null,null,null,null,null,null,null,null,null,null,null,null,null,null,null,null,null,null,null,null,null,null,null,null,4,null,null,null,null,null,null,null,"Missing"]
[null,null,null,null,null,null,null,null,null,null,null,null,null,null,null,null,null,null,null,null,null,null,null,null,null,null,null,null,null,5,null,null,null,null,null,null,"Time","Extra"]
[null,null,null,null,null,null,null,null,null,null,null,null,null,null,null,null,null,null,null,null,null,null,null,null,null,null,null,null,null,6,null,null,null,null,null,null,null,"Delay"]
[null,null,null,null,null,null,null,null,null,null,null,null,null,null,null,null,null,null,null,null,null,null,null,null,null,null,null,null,null,7,null,null,null,null,null,null,null,"Missing"]
[null,null,null,null,null,null,null,null,null,null,null,null,null,null,null,null,null,null,null,null,null,null,null,null,null,null,null,null,null,8,null,null,null,null,null,null,"Height","Up"]
[null,null,null,null,null,null,null,null,null,null,null,null,null,null,null,null,null,null,null,null,null,null,null,null,null,null,null,null,null,9,null,null,null,null,null,null,null,"Down"]
[null,null,null,null,null,null,null,null,null,null,null,null,null,null,null,null,null,null,null,null,null,null,null,null,null,null,null,null,null,10,null,null,null,null,null,null,null,"Missing"]
[null,null,null,null,null,null,null,null,null,null,null,null,null,null,null,null,null,null,null,null,null,null,null,null,null,null,null,null,null,11,null,null,null,null,null,null,"LatLon","Remote"]
[null,null,null,null,null,null,null,null,null,null,null,null,null,null,null,null,null,null,null,null,null,null,null,null,null,null,null,null,null,12,null,null,null,null,null,null,null,"Leap"]
[null,null,null,null,null,null,null,null,null,null,null,null,null,null,null,null,null,null,null,null,null,null,null,null,null,null,null,null,null,13]
[null,null,null,null,null,null,null,null,null,null,null,null,null,null,null,null,null,null,null,null,null,null,null,null,null,null,null,null,null,14,null,null,null,null,null,null,null,"Removal","Time","Height","Lat/Lon","Solo","Double","Triple"]
[null,null,null,null,null,null,null,null,null,null,null,null,null,null,null,null,null,null,null,null,null,null,null,null,null,null,null,null,null,15,null,null,null,null,null,null,null,"Time"]
[null,null,null,null,null,null,null,null,null,null,null,null,null,null,null,null,null,null,null,null,null,null,null,null,null,null,null,null,null,16,null,null,null,null,null,null,null,"Height"]
[null,null,null,null,null,null,null,null,null,null,null,null,null,null,null,null,null,null,null,null,null,null,null,null,null,null,null,null,null,17,null,null,null,null,null,null,null,"LatLon"]
[null,null,null,null,null,null,null,null,null,null,null,null,null,null,null,null,null,null,null,null,null,null,null,null,null,null,null,null,null,18,null,null,null,null,null,null,null,"Missing/Improper",null,null,"Total",{"$f":"SUM(AP46:AP48)","v":0},{"$f":"SUM(AQ46:AQ48)","v":0},{"$f":"SUM(AR46:AR48)","v":0},{"$f":"SUM(AP49:AR49)","v":0}]
[null,null,null,null,null,null,null,null,null,null,null,null,null,null,null,null,null,null,null,null,null,null,null,null,null,null,null,null,null,19]
[null,null,null,null,null,null,null,null,null,null,null,null,null,null,null,null,null,null,null,null,null,null,null,null,null,null,null,null,null,20,null,null,null,null,null,null,null,"Removal","Time","Height","Lat/Lon","Solo","Double","Triple"]
[null,null,null,null,null,null,null,null,null,null,null,null,null,null,null,null,null,null,null,null,null,null,null,null,null,null,null,null,null,21,null,null,null,null,null,null,null,"Time"]
[null,null,null,null,null,null,null,null,null,null,null,null,null,null,null,null,null,null,null,null,null,null,null,null,null,null,null,null,null,22,null,null,null,null,null,null,null,"Height"]
[null,null,null,null,null,null,null,null,null,null,null,null,null,null,null,null,null,null,null,null,null,null,null,null,null,null,null,null,null,23,null,null,null,null,null,null,null,"LatLon"]
[null,null,null,null,null,null,null,null,null,null,null,null,null,null,null,null,null,null,null,null,null,null,null,null,null,null,null,null,null,24,null,null,null,null,null,null,null,"Delay/Erratic Move",null,null,"Total",{"$f":"SUM(AP52:AP54)","v":0},{"$f":"SUM(AQ52:AQ54)","v":0},{"$f":"SUM(AR52:AR54)","v":0},{"$f":"SUM(AP55:AR55)","v":0}]

{"sheet":"Data","index":10,"n_rows":13,"n_cols":18,"rows_kept":13,"cut":false,"hidden":true,"merged":[[7,16,7,17],[8,3,8,4],[8,5,8,6],[9,3,9,4],[9,5,9,6],[10,9,10,10],[10,11,10,13],[10,14,10,15],[10,16,10,17],[2,3,2,4],[2,5,2,6],[7,3,7,4],[7,9,7,10],[7,11,7,13],[7,14,7,15],[0,3,0,4],[0,9,0,10],[0,11,0,13],[0,14,0,15],[0,16,0,17],[1,3,1,4],[1,5,1,6]]}
[null,"処理：",null,null,null,null,null,null,"全期間","全期間",null,"分析ファイルデータ期間",null,null,"チェックファイルデータ期間",null,"チェックファイル"]
["分析データ周期","0時からのずれ",null,"放逐日時",null,"GPSメーカー",null,"機種","名目測位数","有効測位数","有効区間数","開始日","終了日","日数","開始日","終了日","測位周期","0時からのずれ"]
[]
[null,null,null,"標高","予備","X座標","Y座標","単位\n測位間隔\n区間距離","評価期間\n中間日時","評価期間\n有効測位数","評価期間\n有効区間数","評価期間\n平均標高","評価期間\n平均区間距離","評価期間\n中間時\n平均重心距離","評価期間\n平均X","評価期間\n平均Y","最小平均\n重心距離","最大平均\n重心距離"]
["DT","LAT","LON","HGT","EXT","X","Y","UTID","ETMP","NVF","NVI","AHGT","AUTID","mtACD","AX","AY","minACD","maxACD"]
["Date/Time\n(Local Time)","Latitude","Longitude","Height","Extra","X","Y","Unit-Time-Interval\nDistance","Evaluation Time\nMid-Point","No. of \nValid Fixes","No. of \nValid Intervals","Average Height\n","Average Unit-Time-Interval\nDistance","mid-timed \nAv. Centroid Distance","Average X","Average Y","Min. Av. Centroid\nDistance","Max. AV. Centroid\nDistance"]
["ENG"]
[null,"Processed:",null,null,null,null,null,null,"Nominal ","No. of  Valid",null,"Analysis File Data Period",null,null,"Check file Data Period",null,"Check File"]
["Analysis Data Interval","Phase Offset",null,"Release Date/Time",null,"GPS Manufacturer",null,"Model","No. of Fixes","Fixes","Intervals","First Date","Last Date","Days","First Date","Last Date","Time Interval","Phase Offset"]
[]
[null,null,null,null,null,null,null,"Unit-Time","Evaluation T.","Evaluation Period",null,"Evaluation Period",null,null,"Evaluation Period",null,"Evaluation Period"]
["DT","LAT","LON","HGT","EXT","X","Y","UTID","ETMP","NVF","NVI","AHGT","AUTID","mtACD","AX","AY","minACD","maxACD"]
["Date/Time\n(Local Time)","Latitude","Longitude","Height","Extra","X","Y","Unit-Time-Interval\nDistance","Evaluation Time Mid-Point","No. of \nValid Fixes","No. of \nValid Intervals","Average Height\n","Average Unit-Time-Interval\nDistance","mid-timed \nAv. Centroid Distance","Average X","Average Y","Min. Av. Centroid\nDistance","Max. AV. Centroid\nDistance"]

{"sheet":"OA","index":11,"n_rows":21,"n_cols":26,"rows_kept":21,"cut":false,"hidden":true,"merged":[[0,0,0,1],[0,3,0,4],[0,6,0,7],[0,13,0,14],[11,0,11,1],[11,3,11,4],[11,6,11,7],[11,13,11,14]]}
["概要分析",null,"開始",null,null,"終了",null,null,"日数",null,"時間間隔",null,"処理日時",null,null,null,"図サイズ",12,24,"線の太さ",1,"字サイズ",14,"横軸刻み",null,"副刻み"]
["グラフ番号","数量１","評価時間","数量２","評価時間","主軸最大","副軸最大","時間軸","(1/1)*1"]
[1,"HGT",0]
[2,"mtACD",24,"mtACD",48]
[3,"minACD",24,"minACD",48]
[4,"NVF",24,"NVI",24]
[5]
[6]
[7]
[8]
["ENG"]
["Overview Analysis",null,"From",null,null,"To",null,null,"Days",null,"Interval",null,"Processed",null,null,null,"Chart Size",12,24,"L. Weight",1,"Font Size",14,"Major Unit",null,"Minor Unit"]
["Chart No.","Variable1","Eval. Hours","Variable2","Eval. Hours","1st axis","2nd axis","Time Axis","(1/1)*1"]
[1,"HGT",0]
[2,"mtACD",24,"mtACD",48]
[3,"minACD",24,"minACD",48]
[4,"NVF",24,"NVI",24]
[5]
[6]
[7]
[8]

{"sheet":"CA","index":12,"n_rows":21,"n_cols":23,"rows_kept":21,"cut":false,"hidden":true,"merged":[[0,0,0,1],[0,3,0,4],[0,6,0,7],[0,13,0,14],[11,0,11,1],[11,3,11,4],[11,6,11,7],[11,13,11,14]]}
["周期分析",null,"開始",null,null,"終了",null,null,"日数",null,"時間間隔",null,"処理日時",null,null,null,"図サイズ",8,6,"線の太さ",2,"字サイズ",12]
["評価時間"]
["左図 1","HGT","右図 1","NVF"]
["左図 2","AHGT","右図 2","NVI"]
["左図 3","UTID","右図 3"]
["左図 4","AUTID","右図 4"]
["左図 5","mtACD","右図 5"]
["左図 6",null,"右図 6"]
["左図 7",null,"右図 7"]
["左図 8",null,"右図 8"]
["ENG"]
["Cycle Analysis",null,"From",null,null,"To",null,null,"Days",null,"Interval",null,"Processed",null,null,null,"Chart Size",8,6,"L. Weight",2,"Font Size",12]
["Eval. Time"]
["Left 1","HGT","Right 1","NVF"]
["Left 2","AHGT","Right 2","NVI"]
["Left 3","UTID","Right 3"]
["Left 4","AUTID","Right 4"]
["Left 5","mtACD","Right 5"]
["Left 6",null,"Right 6"]
["Left 7",null,"Right 7"]
["Left 8",null,"Right 8"]

{"sheet":"PA","index":13,"n_rows":10,"n_cols":121,"rows_kept":10,"cut":false,"hidden":true,"merged":[[7,0,7,1],[7,3,7,4],[7,6,7,7],[7,13,7,14],[7,40,7,42],[8,0,8,1],[0,0,0,1],[0,3,0,4],[0,6,0,7],[0,13,0,14],[0,40,0,42],[1,0,1,1]]}
["軌跡分析",null,"開始",null,null,"終了",null,null,"日数",null,"時間間隔",null,"処理日時",null,null,null,"図サイズ",12,24,"線の太さ",1,"字サイズ",14,"横軸刻み",null,"副刻み",null,null,"Segmentation",null,"tsND","avD","cumD","mcD","avS","PF/","Dsiz","W1","W2","W3","RMVs",null,null,null,"Data Line",null,null,null,"Ev.Radius 1",null,null,null,null,"Ev.Radius 2",null,null,null,null,null,null,null,null,null,"Dual-Anchor Distance",null,null,null,"Stay Duration",null,"Stay & Move",null,null,null,null,"cminACD (Composite Min. ACD)",null,null,null,null,"sminACD (Multiple-Minimum Average Centroid Distance)",null,null,null,null,null,null,null,null,null,null,null,null,null,null,null,null,null,null,"etCD (end-timed Centroid Distance)",null,null,null,null,null,null,null,null,null,null,null,null,null,null,null,null,null,null,"Path-Area Cumulative"]
["時空間近傍密度図",null,"通過","全 | 本","評価時間",null,"評価半径1",null,"評価半径2",null,"追加図","DualA","HGT","sminACD","StayMove","NVF",null,null,null,null,null,"分割","自動削減",150,"滞在移動図","滞在ACD",10,null,"CLB","Date/Time",null,null,null,null,null,null,null,null,null,null,"Lines","Pairs to","Lines",null,"Date/Time","Line",null,"No.","Date/Time","Past","Future","Past","Future","Past","Future","Past","Future","SUM","DIF",null,null,"Line",null,"fromA"," fromB"," fromA+B",null,"Stay Periods",null,"Stay+Move",null,null,"Stay-Stay",null,"Date/Time","cminACD","StayCD","Days",null,null,null,null,null,null,null,null,null,null,null,null,null,null,null,null,null,null,null,null,1,2,3,4,5,6,12,18,24,null,null,null,null,null,null,null,null,null,null,"Path (m)","Area (ha)","Path/Area","Area/Path"]
["時間軸拡大","(1/1)*1","現分割数",null,"除外候補数",null,"分轄経過","当初区間数",null,"0区間",null,"F0/0F区間",null,"非0均衡区間",null,"除外後",null,null,"自動ペア除外",null,"除外後",null,"介入除外",null,"軌跡面積図","軌跡幅",10,null,null,null,null,null,null,null,null,null,null,null,null,null,null,"remove",null,null,null,null,null,null,null,null,null,null,null,null,null,null,null,null,null,null,null,"Status",null,null,null,null,null,"Date/Time","CD","Date/Time","Dist.","Dist.","Distance",null,null,null,null,null,null,null,null,null,null,null,null,null,null,null,null,null,null,null,null,null,null,null,null,null,null,null,null,null,null,null,null,null,null,null,null,null,null,null,null,null,null,null,null,"from",null,"Until"]
[null,null,null,null,null,null,null,null,null,null,null,null,null,null,null,null,null,null,null,null,null,"全 | 単"]
[]
[]
["ENG"]
["Path Analysis",null,"From",null,null,"To",null,null,"Days",null,"Interval",null,"Processed",null,null,null,"Chart Size",12,24,"L. Weight",1,"Font Size",14,"Major Unit",null,"Minor Unit",null,null,"Segmentation",null,"tsND","avD","cumD","mcD","avS","PF/","Dsiz","W1","W2","W3","RMVs",null,null,null,"Data Line",null,null,null,"Ev.Radius 1",null,null,null,null,"Ev.Radius 2",null,null,null,null,null,null,null,null,null,"Dual-Anchor Distance",null,null,null,"Stay Duration",null,"Stay & Move",null,null,null,null,"cminACD (Composite Min. ACD)",null,null,null,null,"sminACD (Multiple-Minimum Average Centroid Distance)",null,null,null,null,null,null,null,null,null,null,null,null,null,null,null,null,null,null,"etCD (end-timed Centroid Distance)",null,null,null,null,null,null,null,null,null,null,null,null,null,null,null,null,null,null,"Path-Area Cumulative"]
["tsND Chart",null,"Crossing","All | Core","Ev.Time",null,"Ev.Radius 1",null,"Ev.Radius 2",null,"Plus Charts","DualA","HGT","sminACD","StayMove","NVF",null,null,null,null,null,"Segments","Auto-Reduc.",150,"StayMove","StayACD",10,null,"CLB","Date/Time",null,null,null,null,null,null,null,null,null,null,"Lines","Pairs to","Lines",null,"Date/Time","Line",null,"No.","Date/Time","Past","Future","Past","Future","Past","Future","Past","Future","SUM","DIF",null,null,"Line",null,"fromA"," fromB"," fromA+B",null,"Stay Periods",null,"Stay+Move",null,null,"Stay-Stay",null,"Date/Time","cminACD","StayCD","Days",null,null,null,null,null,null,null,null,null,null,null,null,null,null,null,null,null,null,null,null,null,null,null,null,null,null,null,null,null,null,null,null,null,null,null,null,null,null,null,"Path (m)","Area (ha)","Path/Area","Area/Path"]
["Time Axis","(1/1)*1","Curr. #Seg.",null,"To Remove?",null,"Seg. Steps","Init. #Blks",null,"0 Blocks",null,"F0/0F Blks",null,"Non0Equal",null,"Aft. Remov.",null,null,"Auto.Remov.",null,"After Remov.",null,"User Remov.",null,"PathArea","Path Width",10,null,null,null,null,null,null,null,null,null,null,null,null,null,null,"remove",null,null,null,null,null,null,null,null,null,null,null,null,null,null,null,null,null,null,null,"Status",null,null,null,null,null,"Date/Time","CD","Date/Time","Dist.","Dist.","Distance",null,null,null,null,null,null,null,null,null,null,null,null,null,null,null,null,null,null,null,null,null,null,null,null,null,null,null,null,null,null,null,null,null,null,null,null,null,null,null,null,null,null,null,null,"from",null,"Until"]

{"sheet":"PP","index":14,"n_rows":5,"n_cols":15,"rows_kept":5,"cut":false,"hidden":true,"merged":[[4,9,4,10],[0,0,0,1],[0,3,0,4],[0,6,0,7],[0,13,0,14],[1,9,1,10],[3,0,3,1],[3,3,3,4],[3,6,3,7],[3,13,3,14]]}
["軌跡図",null,"開始",null,null,"終了",null,null,"日数",null,"時間間隔",null,"処理日時"]
["No.","時空間密度による分割","期間",null,null,null,null,null,null,"２起点座標",null,"起点A",null,null,"起点B"]
["ENG"]
["Path Plot",null,"From",null,null,"To",null,null,"Days",null,"Time Int.",null,"Processed"]
["No.","Segmentation by TSD","Duration",null,null,null,null,null,null,"Dual Anchor Coordinates",null,"Anchor A",null,null,"Anchor B"]

{"sheet":"TA","index":15,"n_rows":5,"n_cols":15,"rows_kept":5,"cut":false,"hidden":true,"merged":[[4,9,4,10],[0,0,0,1],[0,3,0,4],[0,6,0,7],[0,13,0,14],[1,9,1,10],[3,0,3,1],[3,3,3,4],[3,6,3,7],[3,13,3,14]]}
["時刻分析",null,"開始",null,null,"終了",null,null,"日数",null,"時間間隔",null,"処理日時"]
["No.","時空間密度による分割","期間",null,null,null,null,null,null,"２起点座標",null,"起点A",null,null,"起点B"]
["ENG"]
["Time-of-Day Analysis",null,"From",null,null,"To",null,null,"Days",null,"Time Int.",null,"Processed"]
["No.","Segmentation by TSD","Duration",null,null,null,null,null,null,"Dual Anchor Coordinates",null,"Anchor A",null,null,"Anchor B"]

{"sheet":"ST","index":16,"n_rows":21,"n_cols":26,"rows_kept":21,"cut":false,"hidden":true,"merged":[[0,0,0,1],[0,3,0,4],[0,6,0,7],[0,13,0,14],[11,0,11,1],[11,3,11,4],[11,6,11,7],[11,13,11,14]]}
["近傍密度構造図",null,"開始",null,null,"終了",null,null,"日数",null,"時間間隔",null,"処理日時",null,null,null,"図サイズ ",12,24,"線の太さ",1,"字サイズ",14,"横軸刻み",null,"副刻み"]
["No.","解析日時","評価期間","評価半径","Y軸上限値",null,null,null,null,null,null,null,null,null,null,null,"Density Structure"]
[1]
[2,null,null,null,null,null,null,null,null,null,null,null,null,null,null,null,null,"　本シートの使い方"]
[3]
[4,null,null,null,null,null,null,null,null,null,null,null,null,null,null,null,null,"　解析日時列（第２列）に目的の日時、評価期間列（第３列）に日数を、評価距離列（第４列）にを入力して、マクロSheetProcessorを実行してください。"]
[5,null,null,null,null,null,null,null,null,null,null,null,null,null,null,null,null,"　該当日時前後の指定期間にある測位点との時間差（横軸）、および距離（縦軸）を描きます。"]
[6,null,null,null,null,null,null,null,null,null,null,null,null,null,null,null,null,"　評価距離列が空欄だと評価距離は0 mとみなされ、時空間密度は0.となります。"]
[7]
[8]
["ENG"]
["tsND Structure",null,"From",null,null,"To",null,null,"Days",null,"Interval",null,"Processed",null,null,null,"Chart Size",12,20,"L. Weight",1,"Font Size",14,"Major Unit",null,"Minor Unit"]
["No.","Data/Time in Focus","Ev. Hours","Ev.Radius","Max. Y Axis",null,null,null,null,null,null,null,null,null,null,null,"Density Structure"]
[1]
[2]
[3]
[4]
[5]
[6]
[7]
[8]

{"sheet":"hidden","index":17,"n_rows":34,"n_cols":86,"rows_kept":34,"cut":false,"hidden":true,"merged":[]}
["Date of Creation","2026-06-16T22:16:10",null,null,null,null,null,null,null,"期待平均余剰：実測位間隔のデータを仮定間隔で割った場合の期待平均余剰。実間隔に仮定間隔が合致する場合には０となる。仮定間隔がそれより長いとかならず０以上の値を持つ。短いと、０となったり、ならなかったり。",null,null,null,null,null,null,null,null,null,null,null,null,null,null,null,null,null,null,null,null,null,null,null,null,null,null,null,null,null,null,null,null,null,null,null,null,"配色",null,null,null,null,null,null,null,null,null,null,null,null,null,"OAシートの初期EP値検討",null,null,null,null,null,null,null,null,null,null,null,null,null,null,null,null,null,null,null,null,null,null,null,"'評価期間の最低値を付与"]
["1st Directory",null,null,null,null,null,null,null,null,"余剰",null,null,"実測位間隔",null,null,null,null,null,null,null,null,null,null,null,null,null,null,null,null,null,null,null,null,null,null,null,null,null,null,null,null,null,null,null,null,null,null,"R","G","B",null,"Luminance",null,"R","G","B"]
["2nd Directory",null,null,null,null,null,null,null,null,"No,","仮定間隔",null,1,2,3,4,5,6,10,12,15,20,30,60,90,120,180,240,360,480,720,null,null,null,null,null,null,null,null,null,null,null,null,null,"旧",1,"黄色",255,255,0,null,{"$f":"0.299*AV3+0.587*AW3+0.114*AX3","v":225.93},null,null,null,null,null,null,null,null,null,0.25,0.5,1,1.5,2,3,4,6,8,12,16,24,36,48,72,96,120,144,168,192]
["3rd Directory",null,null,null,null,null,null,null,null,1,1,null,0,0,0,0,0,0,0,0,0,0,0,0,0,0,0,0,0,0,0,null,null,null,null,null,null,null,null,null,null,null,null,null,null,2,"薄緑",218,255,218,null,{"$f":"0.299*AV4+0.587*AW4+0.114*AX4","v":239.71900000000002},null,null,null,null,null,null,null,null,1,{"$f":"$BL4*BJ$3","v":15},30,{"$f":"BL$3*60/BI4","v":60},{"$f":"$BL4*BM$3","v":90},120,180,240,360,480,720,960,1440,2160,2880,4320,5760,7200,8640,10080,11520,null,"0.5, 1.0",null,1,"   Case Is <= 1: tm = 0.25"]
[null,null,null,null,null,null,null,null,null,2,2,null,0.5,0,0.5,0,0.5,0,0,0,0.5,0,0,0,0,0,0,0,0,0,0,null,null,null,null,null,null,null,null,null,null,null,null,null,null,3,"灰色",212,223,237,null,{"$f":"0.299*AV5+0.587*AW5+0.114*AX5","v":221.30699999999999},null,null,null,null,null,null,null,null,2,7.5,15,30,45,60,90,120,180,240,360,480,720,1080,1440,2160,2880,3600,4320,5040,5760,null,"1, 2",null,2,"   Case Is <= 2: tm = 0.5"]
["平川",null,null,null,null,null,null,null,null,3,3,null,1,1,0,1,1,0,1,0,0,1,0,0,0,0,0,0,0,0,0,null,null,null,null,null,null,null,null,null,null,null,null,null,null,4,"ピンク",252,228,214,null,{"$f":"0.299*AV6+0.587*AW6+0.114*AX6","v":233.57999999999998},null,null,null,null,null,null,null,null,3,5,10,20,30,40,60,80,120,160,240,320,480,720,960,1440,1920,2400,2880,3360,3840,null,"1.5, 3",null,3,"   Case Is <= 3: tm = 1.0"]
["◯",9711,null,null,null,null,null,null,null,4,4,null,1.5,1,1.5,0,1.5,1,1,0,1.5,0,1,0,1,0,0,0,0,0,0,null,null,null,null,null,null,null,null,null,null,null,null,null,null,null,null,null,null,null,null,null,null,null,null,null,null,null,null,null,5,3,6,12,18,24,36,48,72,96,144,192,288,432,576,864,1152,1440,1728,2016,2304,null,"2, 4",null,4,"   Case Is <= 5: tm = 1.5"]
["◎",9678,null,null,null,null,null,null,null,5,5,null,2,2,2,2,0,2,0,2,0,0,0,0,0,0,0,0,0,0,0,null,null,null,null,null,null,null,null,null,null,null,null,null,null,1,"水色",180,220,255,null,{"$f":"0.299*AV8+0.587*AW8+0.114*AX8","v":212.02999999999997},null,{"$f":"AV8+(255-AV8)/4","v":198.75},228.75,255,null,{"$f":"0.299*BB8+0.587*BC8+0.114*BD8","v":222.77249999999998},null,null,6,2.5,5,10,15,20,30,40,60,80,120,160,240,360,480,720,960,1200,1440,1680,1920,null,"3, 6",null,5,"   Case Is <= 6: tm = 2"]
["●",9679,null,null,null,null,null,null,null,6,6,null,2.5,2,1.5,2,2.5,0,2,0,2,2,0,0,0,0,0,0,0,0,0,null,null,null,null,null,null,null,null,null,null,null,null,null,null,2,"オレンジ",255,200,120,null,207.32499999999999,null,255,213.75,153.75,null,219.24375000000001,null,null,10,1.5,3,6,9,12,18,24,36,48,72,96,144,216,288,432,576,720,864,1008,1152,null,"4, 8",null,6,"   Case Is <= 10: tm = 3"]
[null,null,null,null,null,null,null,null,null,7,10,null,4.5,4,4.5,4.5,2.5,2,0,2,2.5,0,0,0,0,0,0,0,0,0,0,null,null,null,null,null,null,null,null,null,null,null,null,null,null,3,"緑",170,210,170,null,193.48,null,191.25,221.25,191.25,null,208.86,null,null,12,1.25,2.5,5,7.5,10,15,20,30,40,60,80,120,180,240,360,480,600,720,840,960,null,"6,12",null,7,"   Case Is <= 12: tm = 4"]
[null,null,null,null,null,null,null,null,null,8,12,null,5.5,null,null,null,2.5,3,5,0,4.5,4,3,0,3,0,0,0,0,0,0,null,null,null,null,null,null,null,null,null,null,null,null,null,null,4,"グレー",217,217,217,null,217,null,226.5,226.5,226.5,null,226.5,null,null,15,1,2,4,6,8,12,16,24,32,48,64,96,144,192,288,384,480,576,672,768,null,"6,12",null,8,"   Case Is <= 15: tm = 4"]
[null,null,null,null,null,null,null,null,null,9,15,null,null,null,null,null,5,6,5,6,0,5,0,0,0,0,0,0,0,0,0,null,null,null,null,null,null,null,null,null,null,null,null,null,null,4,"淡い紫",220,200,255,null,212.25,null,228.75,213.75,255,null,222.9375,null,null,20,0.75,1.5,3,4.5,6,9,12,18,24,36,48,72,108,144,216,288,360,432,504,576,null,"8,16",null,9,"   Case Is <= 20: tm = 6"]
[null,null,null,null,null,null,null,null,null,10,20,null,null,null,null,null,null,null,5,8,7.5,0,5,0,5,0,0,0,0,0,0,null,null,null,null,null,null,null,null,null,null,null,null,null,null,4,"ベージュ",245,230,200,null,231.065,null,247.5,236.25,213.75,null,237.04874999999998,null,null,30,0.5,1,2,3,4,6,8,12,16,24,32,48,72,96,144,192,240,288,336,384,null,"12,24",null,10,"   Case Is <= 30: tm = 8"]
[null,null,null,null,null,null,null,null,null,11,30,null,null,null,null,null,null,null,10,12,7.5,20,0,0,0,0,0,0,0,0,0,null,null,null,null,null,null,null,null,null,null,null,null,null,null,null,null,null,null,null,null,null,null,null,null,null,null,null,null,1,60,0.25,0.5,1,1.5,2,3,4,6,8,12,16,24,36,48,72,96,120,144,168,192,null,"24,48",null,11,"   Case Is <= 60: tm = 12"]
[null,null,null,null,null,null,null,null,null,12,60,null,null,null,null,null,null,null,25,null,22.5,20,15,0,15,0,0,0,0,0,0,null,null,null,null,null,null,null,null,null,null,null,null,null,null,"タブ色",null,null,null,null,null,null,null,null,null,null,null,null,null,1.5,90,0.16666666666666666,0.33333333333333331,0.66666666666666663,1,1.3333333333333333,2,2.6666666666666665,4,5.333333333333333,8,10.666666666666666,16,24,32,48,64,80,96,112,128,null,"36,72",null,12,"   Case Is <= 90: tm = 24"]
[null,null,null,null,null,null,null,null,null,13,90,null,null,null,null,null,null,null,null,null,null,40,30,30,0,30,0,30,0,30,0,null,null,null,null,null,null,null,null,null,null,null,null,null,null,"CA","aqua",192,224,255,null,null,null,null,null,null,null,null,null,2,120,0.125,0.25,0.5,0.75,1,1.5,2,3,4,6,8,12,18,24,36,48,60,72,84,96,null,"48,96",null,13,"   Case Is <= 120: tm = 24"]
[null,null,null,null,null,null,null,null,null,14,120,null,null,null,null,null,null,null,null,null,null,null,45,30,45,0,30,0,0,0,0,null,null,null,null,null,null,null,null,null,null,null,null,null,null,"PA","green",192,246,128,null,null,null,null,null,null,null,null,null,3,180,8.3333333333333329E-2,0.16666666666666666,0.33333333333333331,0.5,0.66666666666666663,1,1.3333333333333333,2,2.6666666666666665,4,5.333333333333333,8,12,16,24,32,40,48,56,64,null,72144,null,14,"   Case Is <= 180: tm = 36"]
[null,null,null,null,null,null,null,null,null,15,180,null,null,null,null,null,null,null,null,null,null,null,null,60,45,60,0,60,0,60,0,null,null,null,null,null,null,null,null,null,null,null,null,null,null,"PP","orange",255,224,160,null,null,null,null,null,null,null,null,null,4,240,6.25E-2,0.125,0.25,0.375,0.5,0.75,1,1.5,2,3,4,6,9,12,18,24,30,36,42,48,null,96192,null,15,"   Case Is <= 240: tm = 48"]
[null,null,null,null,null,null,null,null,null,16,240,null,null,null,null,null,null,null,null,null,null,null,null,null,105,60,90,0,60,0,0,null,null,null,null,null,null,null,null,null,null,null,null,null,null,"TA","pink",255,192,255,null,null,null,null,null,null,null,null,null,6,360,4.1666666666666664E-2,8.3333333333333329E-2,0.16666666666666666,0.25,0.33333333333333331,0.5,0.66666666666666663,1,1.3333333333333333,2,2.6666666666666665,4,6,8,12,16,20,24,28,32,null,96192,null,16,"   Case Is <= 360: tm = 72"]
[null,null,null,null,null,null,null,null,null,17,360,null,null,null,null,null,null,null,null,null,null,null,null,null,null,120,90,120,0,120,0,null,null,null,null,null,null,null,null,null,null,null,null,null,null,"ST","yellow",255,255,32,null,null,null,null,null,null,null,null,null,8,480,{"$f":"$BL20*BJ$3","v":3.125E-2},{"$f":"$BL20*BK$3","v":6.25E-2},0.125,0.1875,0.25,0.375,0.5,0.75,1,1.5,2,3,4.5,6,9,12,15,{"$f":"$BL20*CA$3","v":18},21,24,null,96192,null,17,"   Case Is <= 480: tm = 96"]
[null,null,null,null,null,null,null,null,null,18,480,null,null,null,null,null,null,null,null,null,null,null,null,null,null,null,210,120,180,0,0,null,null,null,null,null,null,null,null,null,null,null,null,null,null,null,null,null,null,null,null,null,null,null,null,null,null,null,null,12,720,{"$f":"$BL21*BJ$3","v":2.0833333333333332E-2},4.1666666666666664E-2,8.3333333333333329E-2,0.125,0.16666666666666666,0.25,0.33333333333333331,0.5,0.66666666666666663,1,1.3333333333333333,2,3,4,6,8,10,12,14,16,null,96192,null,18,"   Case Is <= 720: tm = 144"]
[null,null,null,null,null,null,null,null,null,19,720,null,null,null,null,null,null,null,null,null,null,null,null,null,null,null,270,240,180,240,0]
[]
[]
[null,null,null,null,null,null,null,null,null,"除外候補の取り扱い"]
[null,null,null,null,null,null,null,null,null,"個別選択","１回の除外候補数を指定。候補からの取捨選択可。継続の是非も選択。"]
[null,null,null,null,null,null,null,null,null,"自動反復","１回の除外数と総除外数をあらかじめ指定。処理終了まで自動反復。"]
[]
[]
[]
[]
[null,null,null,null,null,null,null,null,null,"Handling of removal candidates"]
[null,null,null,null,null,null,null,null,null,"Manual","The analyst chooses which candidates to remove at each step."]
[null,null,null,null,null,null,null,null,null,"Automatic ","The analyst initially sets the number of removals at each step and for the total."]